Body Name,Body,Service Division Label,Service Division Code,Organisational Unit,Expenditure Category,Expenditure Code,CIPFA detailed expediture type,CIPFA detailed expediture code,Narrative,Date,Transaction number,Net Amount,Capital and Revenue,Supplier Name,Supplier ID,,
Chorley Borough Council,http://statistics.data.gov.uk/id/local-authority/30UE,Corporate Management,1008,EARL - Communities,External Contractor,40198,Miscellaneous Expenses,5034,Support for hoarding clearance,05/08/2022,0169629,695.00,Revenue,3D Environmental Limited,76994,,
Chorley Borough Council,http://statistics.data.gov.uk/id/local-authority/30UE,Central Support Services,1009,CUST - Customer & Digital,Telephones - Other,40085,Communication and Computing,5028,Adept Telecom - July 22,12/08/2022,0169262,"1,810.43",Revenue,Adept Telecom PLC,77452,,
Chorley Borough Council,http://statistics.data.gov.uk/id/local-authority/30UE,Central Support Services,1009,CUST - Customer & Digital,Telephones - Other,40085,Communication and Computing,5028,Adept Telecom - Aug 22,19/08/2022,0170056,"1,810.43",Revenue,Adept Telecom PLC,77452,,
Chorley Borough Council,http://statistics.data.gov.uk/id/local-authority/30UE,Unapportionable Central OHeads,1009,CUST - Customer & Digital,Bank Charges,40151,Miscellaneous Expenses,5034,Transactions,05/08/2022,0169687,832.90,Revenue,Allpay Net Ltd,17242,,
Chorley Borough Council,http://statistics.data.gov.uk/id/local-authority/30UE,Central Support Services,1009,EARL - Communities,External Contractor,40198,Miscellaneous Expenses,5034,Rats and Mice Pest Control for Chorley Council,05/08/2022,0169335,"2,304.10",Revenue,ALPHA PEST CONTROL LIMITED,18208,,
Chorley Borough Council,http://statistics.data.gov.uk/id/local-authority/30UE,Central Support Services,1009,EARL - Communities,Misc Expenses,40200,Miscellaneous Expenses,5034,Installation of fire alarm/smoke sensors and additional work for installation of fridge for Buttermere Community Centre ,05/08/2022,0169321,309.80,Revenue,Amalgamated Ltd,78289,,
Chorley Borough Council,http://statistics.data.gov.uk/id/local-authority/30UE,Unapportionable Central OHeads,1009,GROW - Commercial & Property,Burglar Alarms & Security Systems,20075,Fixtures and Fittings,5010,"Astley Hall, Update intruder alarm system including all control panels and keypads all wiring detection devices to be reused.",26/08/2022,0169871,"5,557.92",Revenue,Amalgamated Ltd,78289,,
Chorley Borough Council,http://statistics.data.gov.uk/id/local-authority/30UE,Unapportionable Central OHeads,1009,GROW - Commercial & Property,General Repairs - Reactive,20004,Repairs Maintenance & Alts,5005,Primrose   - Security Systems Reactive Repairs,26/08/2022,0169879,586.19,Revenue,Amalgamated Ltd,78289,,
Chorley Borough Council,http://statistics.data.gov.uk/id/local-authority/30UE,Unapportionable Central OHeads,1009,GROW - Commercial & Property,Planned Maintenance,20006,Repairs Maintenance & Alts,5005,Chorley Cemetery Store Installation of a monitored intruder alarm system within the cemetery stores,19/08/2022,0169880,"3,615.29",Revenue,Amalgamated Ltd,78289,,
Chorley Borough Council,http://statistics.data.gov.uk/id/local-authority/30UE,Central Support Services,1009,CUST - Customer & Digital,Computer Software-Additional,40102,Communication and Computing,5028,Amazon AWS web services - Cloud chargesJune 2022,05/08/2022,0168660,"5,240.93",Revenue,Amazon Web Services EMEA SARL,80604,,
Chorley Borough Council,http://statistics.data.gov.uk/id/local-authority/30UE,Tourism,1039,GOVN - Policy & Governance,Misc Expenses,40200,Miscellaneous Expenses,5034,Reel of 100 `I`ve seen Santa` Santa stickers Box of 50 assorted wrapped gifts for selection A Wrapped bath boats set,12/08/2022,0169356,"1,702.65",Revenue,Andersons Wholesale,78268,,
Chorley Borough Council,http://statistics.data.gov.uk/id/local-authority/30UE,Tourism,1039,GOVN - Policy & Governance,Misc Expenses,40200,Miscellaneous Expenses,5034,promotional discount,12/08/2022,0169356,-170.26,Revenue,Andersons Wholesale,78268,,
Chorley Borough Council,http://statistics.data.gov.uk/id/local-authority/30UE,Tourism,1039,GOVN - Policy & Governance,Misc Expenses,40200,Miscellaneous Expenses,5034,"Chorley Flower Show 2022 Friday 29, Saturday 30 & Sunday 31 July 2022 Caf� Society Jazz Band performances",05/08/2022,0169617,"1,800.00",Revenue,Anthony Mason,65367,,
Chorley Borough Council,http://statistics.data.gov.uk/id/local-authority/30UE,Service Management & Support,1009,CUST - Customer & Digital,Protective Clothing,40040,"Clothing, Uniforms and Laundry",5025,Goliath SDR10CSI Black Safety Boot- ,19/08/2022,0169952,400.00,Revenue,Arco Limited,17458,,
Chorley Borough Council,http://statistics.data.gov.uk/id/local-authority/30UE,Service Management & Support,1009,CUST - Customer & Digital,Supplies-Grounds Maintenance,40025,"Equipment, Furniture & Materia",5023,Supply 8  3/4 ply boards 8` x 4`,12/08/2022,0169164,320.00,Revenue,Asc Timber Supplies Ltd,16240,,
Chorley Borough Council,http://statistics.data.gov.uk/id/local-authority/30UE,Central Support Services,1009,CUST - Customer & Digital,Misc Expenses,40200,Miscellaneous Expenses,5034,Stainless steel framing Powder coated to RAL 3020 Flat composite roof Polycarbonate glazin,19/08/2022,0169839,"4,370.00",Revenue,Autocross Euroshel Ltd,77509,,
Chorley Borough Council,http://statistics.data.gov.uk/id/local-authority/30UE,Public Transport,1067,CUST - Customer & Digital,Bus Shelters -Maintenance,20062,Grounds Maintenance Costs,5013,"HIGHER WHEELTON, Fishwick Lane (by) Blackburn Road - PR6 8FA Replacement roof poly sheet",19/08/2022,0169843,905.00,Revenue,Autocross Euroshel Ltd,77509,,
Chorley Borough Council,http://statistics.data.gov.uk/id/local-authority/30UE,Democratic Represent and  Mgnt,1007,GROW - Commercial & Property,Fixtures & Fittings - Purchase,20027,Fixtures and Fittings,5010,WEEE recycling.Freezer for Eaves Green Community Centre.,12/08/2022,0169330,353.33,Revenue,Aztec Domestics,16214,,
Chorley Borough Council,http://statistics.data.gov.uk/id/local-authority/30UE,Democratic Represent and  Mgnt,1007,GROW - Commercial & Property,Fixtures & Fittings - Purchase,20027,Fixtures and Fittings,5010,Hotpoint twin cavity with ceramic hob in black,05/08/2022,0169603,387.50,Revenue,Aztec Domestics,16214,,
Chorley Borough Council,http://statistics.data.gov.uk/id/local-authority/30UE,Central Support Services,1009,GROW - Commercial & Property,Misc Expenses,40200,Miscellaneous Expenses,5034,1x Fridge Freezer for Tatton Show flat,19/08/2022,0170012,304.17,Revenue,Aztec Domestics,16214,,
Chorley Borough Council,http://statistics.data.gov.uk/id/local-authority/30UE,Capital,Capital,PLAN - Planning & Development,Main Contractor,03007,Capital Expenditure,Capital,"300nr c9 lavender plants.  for delivery to Astley Park Flower Show Ground, access through Hallgate car park ",05/08/2022,0169616,300.00,Capital,Bannister Hall Ltd,22515,,
Chorley Borough Council,http://statistics.data.gov.uk/id/local-authority/30UE,Planning Policy,1092,PLAN - Planning & Development,Consultants` Fees,40077,Services,5027,Chorley Market Update 2022,12/08/2022,0169959,"3,525.00",Revenue,BE Group,85517,,
Chorley Borough Council,http://statistics.data.gov.uk/id/local-authority/30UE,Democratic Represent and  Mgnt,1007,PLAN - Planning & Development,Maintenance/Nature Reserves,20045,Grounds Maintenance Costs,5013,Quote no 186245 - Printing of 1000  Yarrow Valley History Trail leaflets,05/08/2022,0169678,321.00,Revenue,BHW Print Group,77459,,
Chorley Borough Council,http://statistics.data.gov.uk/id/local-authority/30UE,Democratic Represent and  Mgnt,1007,PLAN - Planning & Development,Maintenance/Nature Reserves,20045,Grounds Maintenance Costs,5013,Quote No 186938 - Reprint of Yarrow Valley General Information leaflet with amendments. 1000nr,05/08/2022,0169679,520.00,Revenue,BHW Print Group,77459,,
Chorley Borough Council,http://statistics.data.gov.uk/id/local-authority/30UE,Democratic Represent and  Mgnt,1007,PLAN - Planning & Development,Maintenance/Nature Reserves,20045,Grounds Maintenance Costs,5013,Quote No 186246 - Yarrow Valley Walk Trail Leaflets - 4 sorts of 1000 each.,05/08/2022,0169682,512.00,Revenue,BHW Print Group,77459,,
Chorley Borough Council,http://statistics.data.gov.uk/id/local-authority/30UE,Central Support Services,1009,CUST - Customer & Digital,Printing,40043,"Printing, Stationery & General",5026,2000 garden waste stickers 2000 waste recycling flyers Artwork sent over previously.,19/08/2022,0169768,726.00,Revenue,BHW Print Group,77459,,
Chorley Borough Council,http://statistics.data.gov.uk/id/local-authority/30UE,Central Support Services,1009,CUST - Customer & Digital,Printing,40043,"Printing, Stationery & General",5026,Recycling Bin Flyer,19/08/2022,0169768,218.00,Revenue,BHW Print Group,77459,,
Chorley Borough Council,http://statistics.data.gov.uk/id/local-authority/30UE,Central Support Services,1009,CUST - Customer & Digital,Telephones - Rentals,40083,Communication and Computing,5028,chares 1/4 o30/9/22,05/08/2022,0169701,"3,752.26",Revenue,British Telecommunications Plc,17131,,
Chorley Borough Council,http://statistics.data.gov.uk/id/local-authority/30UE,Central Support Services,1009,CUST - Customer & Digital,Telephones - Rentals,40083,Communication and Computing,5028,adjustments,05/08/2022,0169701,4.00,Revenue,British Telecommunications Plc,17131,,
Chorley Borough Council,http://statistics.data.gov.uk/id/local-authority/30UE,Central Support Services,1009,CUST - Customer & Digital,Telephones - Rentals,40083,Communication and Computing,5028,usage,05/08/2022,0169701,100.27,Revenue,British Telecommunications Plc,17131,,
Chorley Borough Council,http://statistics.data.gov.uk/id/local-authority/30UE,Central Support Services,1009,CUST - Customer & Digital,Telephones - Rentals,40083,Communication and Computing,5028,late fee,05/08/2022,0169701,70.00,Revenue,British Telecommunications Plc,17131,,
Chorley Borough Council,http://statistics.data.gov.uk/id/local-authority/30UE,Capital,Capital,GROW - Commercial & Property,Main Contractor,03007,Capital Expenditure,Capital,Astley Hall redecoration works as agreed by NAME REDACTED Quotation - Q6200,19/08/2022,0167603,"11,533.28",Capital,Bullen Conservation Ltd,68424,,
Chorley Borough Council,http://statistics.data.gov.uk/id/local-authority/30UE,Capital,Capital,GROW - Commercial & Property,Main Contractor,03007,Capital Expenditure,Capital,Astley Hall Renovation and Conservation Project works - new PO as other lapsed financial years,05/08/2022,0169265,"21,116.37",Capital,Bullen Conservation Ltd,68424,,
Chorley Borough Council,http://statistics.data.gov.uk/id/local-authority/30UE,Capital,Capital,GROW - Commercial & Property,Main Contractor,03007,Capital Expenditure,Capital,Astley Hall Renovation and Conservation Project works - new PO as other lapsed financial years,19/08/2022,0169266,"50,783.02",Capital,Bullen Conservation Ltd,68424,,
Chorley Borough Council,http://statistics.data.gov.uk/id/local-authority/30UE,Capital,Capital,GROW - Commercial & Property,Main Contractor,03007,Capital Expenditure,Capital,Astley Hall Renovation and Conservation Project works - new PO as other lapsed financial years,05/08/2022,0169516,"31,704.21",Capital,Bullen Conservation Ltd,68424,,
Chorley Borough Council,http://statistics.data.gov.uk/id/local-authority/30UE,Service Management & Support,1009,CUST - Customer & Digital,External Contractor,40198,Miscellaneous Expenses,5034,Bengal St Depot � Empty yard catch pits each month � Rowan Croft Pond � Jet outlet pipe and clear trash ,19/08/2022,0169236,400.00,Revenue,C J Lyon,16579,,
Chorley Borough Council,http://statistics.data.gov.uk/id/local-authority/30UE,Service Management & Support,1009,CUST - Customer & Digital,External Contractor,40198,Miscellaneous Expenses,5034,Bengal St Depot � Empty yard catch pits each month � Rowan Croft Pond � Jet outlet pipe and clear trash ,19/08/2022,0169401,390.00,Revenue,C J Lyon,16579,,
Chorley Borough Council,http://statistics.data.gov.uk/id/local-authority/30UE,Service Management & Support,1009,CUST - Customer & Digital,External Contractor,40198,Miscellaneous Expenses,5034,"Astley park, Chorley drains to be cleared along the main road through from Park Road to Astley hall out past the caf�",05/08/2022,0169607,450.00,Revenue,C J Lyon,16579,,
Chorley Borough Council,http://statistics.data.gov.uk/id/local-authority/30UE,Service Management & Support,1009,CUST - Customer & Digital,External Contractor,40198,Miscellaneous Expenses,5034,Bengal St Depot � Empty yard catch pits & yard interceptor. Rowan Croft Pond � Jet outlet pipe and clear trash screen,19/08/2022,0169608,750.00,Revenue,C J Lyon,16579,,
Chorley Borough Council,http://statistics.data.gov.uk/id/local-authority/30UE,Central Support Services,1009,CUST - Customer & Digital,IT Software - Annual Licences,40101,Communication and Computing,5028,One Cloud Annual Subscription,26/08/2022,0168409,"185,000.00",Revenue,Capita Business Services Ltd,17151,,
Chorley Borough Council,http://statistics.data.gov.uk/id/local-authority/30UE,Building Control,1090,PLAN - Planning & Development,Agency Staff,13000,Direct Employee Expenses,5001,Agency fees for NAME REDACTED Building Control Officer - initial 6 months contract effective 13.06.2022,19/08/2022,0169686,"1,694.00",Revenue,Carrington West Ltd,83124,,
Chorley Borough Council,http://statistics.data.gov.uk/id/local-authority/30UE,Building Control,1090,PLAN - Planning & Development,Agency Staff,13000,Direct Employee Expenses,5001,Agency fees for Building Control Officer NAME REDACTED July 2022 ongoing contract,26/08/2022,0170163,"1,044.00",Revenue,Carrington West Ltd,83124,,
Chorley Borough Council,http://statistics.data.gov.uk/id/local-authority/30UE,Building Control,1090,PLAN - Planning & Development,Agency Staff,13000,Direct Employee Expenses,5001,Agency fees for Building Control Officer NAME REDACTED July 2022 ongoing contract,26/08/2022,0170164,936.00,Revenue,Carrington West Ltd,83124,,
Chorley Borough Council,http://statistics.data.gov.uk/id/local-authority/30UE,Corporate Management,1008,EARL - Communities,External Contractor,40198,Miscellaneous Expenses,5034,Removal of items from property from hoarding support fund,05/08/2022,0169261,260.00,Revenue,Chell Deliveries,75926,,
Chorley Borough Council,http://statistics.data.gov.uk/id/local-authority/30UE,Parking Services,1066,GROW - Commercial & Property,External Contractors,50008,Private Contractors,5042,Processing Services for period 01.04.2022-31.03.2023 Notice Processing Services Automated Telephone and Internet Payments,05/08/2022,0169533,258.99,Revenue,Chipside Ltd,22063,,
Chorley Borough Council,http://statistics.data.gov.uk/id/local-authority/30UE,Parking Services,1066,GROW - Commercial & Property,External Contractors,50008,Private Contractors,5042,"Processing 075

Processing 076

Processing 077

Processing 079

Processing 080

Processing 085

Processing 086

MIPERMIT FEES

MIPERMIT CHARGE

ELECPAYBANKFEE

Processing 010

Processing 011",05/08/2022,0169533,32.43,Revenue,Chipside Ltd,22063,,
Chorley Borough Council,http://statistics.data.gov.uk/id/local-authority/30UE,Parking Services,1066,GROW - Commercial & Property,External Contractors,50008,Private Contractors,5042,MIPERMIT FEES MIPERMIT CHARGE ELECPAYBANKFEE,19/08/2022,0169967,473.42,Revenue,Chipside Ltd,22063,,
Chorley Borough Council,http://statistics.data.gov.uk/id/local-authority/30UE,Regulatory Services,1048,PLAN - Planning & Development,Taxi Testing & Vehicle Safety Report,40234,Services,5027,mot,19/08/2022,0169855,"1,097.00",Revenue,Chorley Autocare Ltd,17110,,
Chorley Borough Council,http://statistics.data.gov.uk/id/local-authority/30UE,Regulatory Services,1048,PLAN - Planning & Development,Taxi Testing & Vehicle Safety Report,40234,Services,5027,taxi,19/08/2022,0169855,171.00,Revenue,Chorley Autocare Ltd,17110,,
Chorley Borough Council,http://statistics.data.gov.uk/id/local-authority/30UE,Democratic Represent and  Mgnt,1007,GOVN - Policy & Governance,Other Contributions,40145,Grants and Subscriptions,5031,Donation from the Mayoral Fundraising 2021/22,26/08/2022,0170204,"4,702.54",Revenue,Chorley In Bloom group,70247,,
Chorley Borough Council,http://statistics.data.gov.uk/id/local-authority/30UE,Central Support Services,1009,EARL - Communities,Children's Activities,40188,Miscellaneous Expenses,5034,Delivery of Quarter 3 PASTA programme,05/08/2022,0169200,"7,500.00",Revenue,Chorley School Sport Partnership,56115,,
Chorley Borough Council,http://statistics.data.gov.uk/id/local-authority/30UE,Corporate Management,1008,EARL - Communities,Other Contributions,40145,Grants and Subscriptions,5031,Delivery of Household Support Fund - Phase 2,05/08/2022,0169314,"2,700.00",Revenue,Chorley United Reformed Church,77003,,
Chorley Borough Council,http://statistics.data.gov.uk/id/local-authority/30UE,Central Support Services,1009,EARL - Communities,Children's Activities,40188,Miscellaneous Expenses,5034,Interim payment for Summer HAF provision until LCC funding is received.,05/08/2022,0169620,"20,000.00",Revenue,Chorley Youth Zone,77339,,
Chorley Borough Council,http://statistics.data.gov.uk/id/local-authority/30UE,Tourism,1039,GOVN - Policy & Governance,Professional Fees,40063,Services,5027,First Aid cover at events,19/08/2022,0170002,750.00,Revenue,Chorley`s Angels Community Group,63882,,
Chorley Borough Council,http://statistics.data.gov.uk/id/local-authority/30UE,Economic Development,1096,GROW - Commercial & Property,Fixtures & Fittings - Repair/Mtnce,20028,Fixtures and Fittings,5010,Installation of Additional bunting around Market Walk and the covered Market for the Jubilee celebrations.,19/08/2022,0168518,525.00,Revenue,City Illuminations Ltd,77388,,
Chorley Borough Council,http://statistics.data.gov.uk/id/local-authority/30UE,Homelessness,1075,EARL - Communities,Training Course Fees,17010,Indirect Employee Expenses,5002,Abritas reports training,19/08/2022,0168424,"1,480.00",Revenue,Civica UK Limited,17463,,
Chorley Borough Council,http://statistics.data.gov.uk/id/local-authority/30UE,Central Support Services,1009,CUST - Customer & Digital,Computer Software-Purchase,40100,Communication and Computing,5028,3d secure V2 License - on install into test 3D Secure v2 Implementation - On Implementation,26/08/2022,0170155,"6,000.00",Revenue,Civica UK Limited,17463,,
Chorley Borough Council,http://statistics.data.gov.uk/id/local-authority/30UE,Capital,Capital,PLAN - Planning & Development,Main Contractor,03007,Capital Expenditure,Capital,"Playing Pitch Improvements at Wigan Lane Playing Field, Chorley",05/08/2022,0169707,"3,500.53",Capital,Cleveland Land Services (Guisborough) Limited,83953,,
Chorley Borough Council,http://statistics.data.gov.uk/id/local-authority/30UE,Capital,Capital,PLAN - Planning & Development,Main Contractor,03007,Capital Expenditure,Capital,"Works to Jubilee Rec to enhance boundary fencing, gates and knee rail. EXACOM24",12/08/2022,0169960,"2,676.28",Capital,Conservation Contracts North West,20520,,
Chorley Borough Council,http://statistics.data.gov.uk/id/local-authority/30UE,Central Support Services,1009,CUST - Customer & Digital,Computer Equipment-Purchase,40098,Communication and Computing,5028,"Astley Park Fibre, CCTV Camera, Electrical and Wi-Fi Install",05/08/2022,0167434,"14,632.17",Revenue,Core Integrated Solutions,77043,,
Chorley Borough Council,http://statistics.data.gov.uk/id/local-authority/30UE,Central Support Services,1009,CUST - Customer & Digital,Computer Equipment-Purchase,40098,Communication and Computing,5028,Astley Park Fibre Connection ASTLEY HALL CCTV DUCT INVESTIGATION & CONNECTION WORKS,05/08/2022,0167435,"25,521.88",Revenue,Core Integrated Solutions,77043,,
Chorley Borough Council,http://statistics.data.gov.uk/id/local-authority/30UE,Central Support Services,1009,CUST - Customer & Digital,Computer Equipment-Purchase,40098,Communication and Computing,5028,"Astley Park Fibre, CCTV Camera, Electrical and Wi-Fi Install",05/08/2022,0168262,"14,663.15",Revenue,Core Integrated Solutions,77043,,
Chorley Borough Council,http://statistics.data.gov.uk/id/local-authority/30UE,Homelessness,1075,GROW - Commercial & Property,Gas,20014,Energy Costs,5006,Cotswold house,05/08/2022,0169652,"2,442.46",Revenue,Corona Energy Retail 2 Ltd,67249,,
Chorley Borough Council,http://statistics.data.gov.uk/id/local-authority/30UE,Democratic Represent and  Mgnt,1007,GROW - Commercial & Property,Gas,20014,Energy Costs,5006,Astley Village comm centre,05/08/2022,0169654,379.33,Revenue,Corona Energy Retail 2 Ltd,67249,,
Chorley Borough Council,http://statistics.data.gov.uk/id/local-authority/30UE,Democratic Represent and  Mgnt,1007,GROW - Commercial & Property,Gas,20014,Energy Costs,5006,Astley hall,05/08/2022,0169657,"1,133.52",Revenue,Corona Energy Retail 2 Ltd,67249,,
Chorley Borough Council,http://statistics.data.gov.uk/id/local-authority/30UE,Democratic Represent and  Mgnt,1007,GROW - Commercial & Property,Gas,20014,Energy Costs,5006,Astley hall coach house,05/08/2022,0169659,430.32,Revenue,Corona Energy Retail 2 Ltd,67249,,
Chorley Borough Council,http://statistics.data.gov.uk/id/local-authority/30UE,Central Support Services,1009,GROW - Commercial & Property,Gas,20014,Energy Costs,5006,civic offices,05/08/2022,0169660,"1,255.88",Revenue,Corona Energy Retail 2 Ltd,67249,,
Chorley Borough Council,http://statistics.data.gov.uk/id/local-authority/30UE,Recreation & Sport,1037,GROW - Commercial & Property,Gas,20014,Energy Costs,5006,Clayton brook village hall,05/08/2022,0169661,354.95,Revenue,Corona Energy Retail 2 Ltd,67249,,
Chorley Borough Council,http://statistics.data.gov.uk/id/local-authority/30UE,Unapportionable Central OHeads,1009,GROW - Commercial & Property,Gas,20014,Energy Costs,5006,Town hall Market street,05/08/2022,0169662,264.54,Revenue,Corona Energy Retail 2 Ltd,67249,,
Chorley Borough Council,http://statistics.data.gov.uk/id/local-authority/30UE,Central Support Services,1009,GROW - Commercial & Property,Gas,20014,Energy Costs,5006,Westway,05/08/2022,0169694,269.65,Revenue,Corona Energy Retail 2 Ltd,67249,,
Chorley Borough Council,http://statistics.data.gov.uk/id/local-authority/30UE,Business Support,1095,GROW - Commercial & Property,Gas,20014,Energy Costs,5006,Fleet street,05/08/2022,0169695,"3,615.89",Revenue,Corona Energy Retail 2 Ltd,67249,,
Chorley Borough Council,http://statistics.data.gov.uk/id/local-authority/30UE,Recreation & Sport,1037,GROW - Commercial & Property,Gas,20014,Energy Costs,5006,Centra drive,05/08/2022,0169696,"2,132.82",Revenue,Corona Energy Retail 2 Ltd,67249,,
Chorley Borough Council,http://statistics.data.gov.uk/id/local-authority/30UE,Recreation & Sport,1037,GROW - Commercial & Property,Gas,20014,Energy Costs,5006,Lodge bank,05/08/2022,0169697,"4,849.73",Revenue,Corona Energy Retail 2 Ltd,67249,,
Chorley Borough Council,http://statistics.data.gov.uk/id/local-authority/30UE,Democratic Represent and  Mgnt,1007,GROW - Commercial & Property,Gas,20014,Energy Costs,5006,Water street,05/08/2022,0169699,"17,683.38",Revenue,Corona Energy Retail 2 Ltd,67249,,
Chorley Borough Council,http://statistics.data.gov.uk/id/local-authority/30UE,Central Support Services,1009,CUST - Customer & Digital,Items For Resale,40027,"Equipment, Furniture & Materia",5023,"Neo 240L Wheeled bin, dark Grey with RFID chip fitted and Chorley Logo.",19/08/2022,0170013,"6,075.00",Revenue,Craemer UK Ltd,64712,,
Chorley Borough Council,http://statistics.data.gov.uk/id/local-authority/30UE,Unapportionable Central OHeads,1009,GROW - Commercial & Property,General Repairs - Reactive,20004,Repairs Maintenance & Alts,5005,ADDRESS REDACTED/ Primo Safe T vinyl sheet safety flooring / TB uplift existing floor coverings ,05/08/2022,0169594,649.99,Revenue,CRT Flooring Specialists Ltd,78207,,
Chorley Borough Council,http://statistics.data.gov.uk/id/local-authority/30UE,Unapportionable Central OHeads,1009,GROW - Commercial & Property,General Repairs - Reactive,20004,Repairs Maintenance & Alts,5005,ADDRESS REDACTED / Polyflor Secura 2mm vinyl sheet cushion vinyl/uplift existing floor coverings,05/08/2022,0169595,413.84,Revenue,CRT Flooring Specialists Ltd,78207,,
Chorley Borough Council,http://statistics.data.gov.uk/id/local-authority/30UE,Unapportionable Central OHeads,1009,GROW - Commercial & Property,General Repairs - Reactive,20004,Repairs Maintenance & Alts,5005,ADDRESS REDACTED/ Polyflor Forest FX 2mm x 2m wide heterogeneous /apply maximum 3mm thickness of screeding ,05/08/2022,0169596,"2,576.05",Revenue,CRT Flooring Specialists Ltd,78207,,
Chorley Borough Council,http://statistics.data.gov.uk/id/local-authority/30UE,Unapportionable Central OHeads,1009,GROW - Commercial & Property,General Repairs - Reactive,20004,Repairs Maintenance & Alts,5005,ADDRESS REDACTED Polyflor Forest FX 2mm x 2m wide heterogeneous /Sub Floor Preparation / ACM Floor Ti,05/08/2022,0169597,"2,004.25",Revenue,CRT Flooring Specialists Ltd,78207,,
Chorley Borough Council,http://statistics.data.gov.uk/id/local-authority/30UE,Development Control,1091,PLAN - Planning & Development,Professional Fees,40063,Services,5027,PROFESSIONAL SERVICES IN RESPECT OF CHORLEY MBC v NAME REDACTED - BRIEF ON HEARING ,12/08/2022,0169364,"1,100.00",Revenue,D Traynor,17328,,
Chorley Borough Council,http://statistics.data.gov.uk/id/local-authority/30UE,Unapportionable Central OHeads,1009,CUST - Customer & Digital,Agency Staff,13000,Direct Employee Expenses,5001,Temporary staff to provide additional cover within Customer Services,05/08/2022,0169476,302.40,Revenue,Daniel Adams Recruitment,78104,,
Chorley Borough Council,http://statistics.data.gov.uk/id/local-authority/30UE,Business Support,1095,GROW - Commercial & Property,Agency Staff,13000,Direct Employee Expenses,5001,"per your week 17 invoice 654424, reception/admin cover ",05/08/2022,0169605,306.48,Revenue,Daniel Adams Recruitment,78104,,
Chorley Borough Council,http://statistics.data.gov.uk/id/local-authority/30UE,Unapportionable Central OHeads,1009,CUST - Customer & Digital,Agency Staff,13000,Direct Employee Expenses,5001,Temporary staff to provide additional cover within Customer Services,12/08/2022,0169773,396.00,Revenue,Daniel Adams Recruitment,78104,,
Chorley Borough Council,http://statistics.data.gov.uk/id/local-authority/30UE,Business Support,1095,GROW - Commercial & Property,Cleaning/Attendants' Services,20041,Cleaning and Domestic Supplies,5012,"Per your week 19 invoice 654467, cleaning cover for 24 hours",12/08/2022,0169993,331.20,Revenue,Daniel Adams Recruitment,78104,,
Chorley Borough Council,http://statistics.data.gov.uk/id/local-authority/30UE,Unapportionable Central OHeads,1009,CUST - Customer & Digital,Agency Staff,13000,Direct Employee Expenses,5001,Temporary staff to provide additional cover within Customer Services,19/08/2022,0170057,522.00,Revenue,Daniel Adams Recruitment,78104,,
Chorley Borough Council,http://statistics.data.gov.uk/id/local-authority/30UE,Central Support Services,1009,EARL - Communities,Training Course Fees,17010,Indirect Employee Expenses,5002,DGF are providing First Aid Training for 6 members of Chorley Sheds on Tuesday 9th August 2022,19/08/2022,0170015,300.00,Revenue,DGF First Aid Training,72087,,
Chorley Borough Council,http://statistics.data.gov.uk/id/local-authority/30UE,Service Management & Support,1009,CUST - Customer & Digital,Supplies - Workshop,40246,"Equipment, Furniture & Materia",5023,As per document 056863Order ref 236817,19/08/2022,0169379,353.85,Revenue,Dick Leigh,17138,,
Chorley Borough Council,http://statistics.data.gov.uk/id/local-authority/30UE,Service Management & Support,1009,CUST - Customer & Digital,Supplies - Workshop,40246,"Equipment, Furniture & Materia",5023,As per document 056862 Order ref 236816,19/08/2022,0169408,386.71,Revenue,Dick Leigh,17138,,
Chorley Borough Council,http://statistics.data.gov.uk/id/local-authority/30UE,Capital,Capital,PLAN - Planning & Development,Main Contractor,03007,Capital Expenditure,Capital,Grass pitch improvement works at Westway Playing Fields,12/08/2022,0169282,"24,764.06",Capital,Duncan Ross Ltd,76803,,
Chorley Borough Council,http://statistics.data.gov.uk/id/local-authority/30UE,Parking Services,1066,GROW - Commercial & Property,Fixtures & Fittings - Repair/Mtnce,20028,Fixtures and Fittings,5010,Carry out urgent repairs to Brunswick Street Barrier (works done 28.07.22),05/08/2022,0169708,375.00,Revenue,Edwards Wrought Iron Ltd,77654,,
Chorley Borough Council,http://statistics.data.gov.uk/id/local-authority/30UE,Central Support Services,1009,CUST - Customer & Digital,Mobile Voice and Data,40086,Communication and Computing,5028,03 july 22,05/08/2022,0169723,"2,985.58",Revenue,EE - Orange,16486,,
Chorley Borough Council,http://statistics.data.gov.uk/id/local-authority/30UE,Central Support Services,1009,CUST - Customer & Digital,Mobile Voice and Data,40086,Communication and Computing,5028,3 Aug22,12/08/2022,0169988,"2,160.72",Revenue,EE - Orange,16486,,
Chorley Borough Council,http://statistics.data.gov.uk/id/local-authority/30UE,Central Support Services,1009,CUST - Customer & Digital,Mobile Voice and Data,40086,Communication and Computing,5028,03 May 2022,17/08/2022,0170054,"3,077.02",Revenue,EE - Orange,16486,,
Chorley Borough Council,http://statistics.data.gov.uk/id/local-authority/30UE,Central Support Services,1009,CUST - Customer & Digital,Mobile Voice and Data,40086,Communication and Computing,5028,3April22,17/08/2022,0170084,"3,208.69",Revenue,EE - Orange,16486,,
Chorley Borough Council,http://statistics.data.gov.uk/id/local-authority/30UE,Homelessness,1075,GROW - Commercial & Property,Laundry,40042,"Clothing, Uniforms and Laundry",5025,For the laundry services provided to Cotswold House,19/08/2022,0169857,927.17,Revenue,Elis UK Ltd,20799,,
Chorley Borough Council,http://statistics.data.gov.uk/id/local-authority/30UE,Business Support,1095,GROW - Commercial & Property,Internet Charges,40104,Communication and Computing,5028,"``Call Off`` order for Operate Growth, April 2022 to March 2023 Connect Growth, April 2022 to March 2023 ",12/08/2022,0169846,306.13,Revenue,Essensys Ltd,77836,,
Chorley Borough Council,http://statistics.data.gov.uk/id/local-authority/30UE,Service Management & Support,1009,CUST - Customer & Digital,Supplies-Grounds Maintenance,40025,"Equipment, Furniture & Materia",5023,As per quotation Q16609,19/08/2022,0169858,353.58,Revenue,F R Sharrock Ltd,18091,,
Chorley Borough Council,http://statistics.data.gov.uk/id/local-authority/30UE,Central Support Services,1009,CUST - Customer & Digital,Unitary Payment(S),50009,Private Contractors,5042,Provision of Waste and Recycling Services to Chorley Council 2022/23,05/08/2022,0168902,"201,972.31",Revenue,FCC Environment Services (UK) Limited,77903,,
Chorley Borough Council,http://statistics.data.gov.uk/id/local-authority/30UE,Central Support Services,1009,CUST - Customer & Digital,Unitary Payment(S),50009,Private Contractors,5042,Provision of Waste and Recycling Services to Chorley Council 2022/23,12/08/2022,0169706,"203,196.82",Revenue,FCC Environment Services (UK) Limited,77903,,
Chorley Borough Council,http://statistics.data.gov.uk/id/local-authority/30UE,Democratic Represent and  Mgnt,1007,GROW - Commercial & Property,Legal Fees,40171,Miscellaneous Expenses,5034,Professional services concerning Field Change Request application relating to:Approval of lease of a car park ,12/08/2022,0169376,300.00,Revenue,Filelds In Trust - National Playing Fields Assoc,17193,,
Chorley Borough Council,http://statistics.data.gov.uk/id/local-authority/30UE,Unapportionable Central OHeads,1009,GOVN - Policy & Governance,Legal Fees,40171,Miscellaneous Expenses,5034,Tribunal Claim for NAME REDACTED,12/08/2022,0169229,"4,802.00",Revenue,Forbes Solicitors,17527,,
Chorley Borough Council,http://statistics.data.gov.uk/id/local-authority/30UE,Unapportionable Central OHeads,1009,GOVN - Policy & Governance,Legal Fees,40171,Miscellaneous Expenses,5034,Tribunal Claim for NAME REDACTED,12/08/2022,0169762,"4,661.50",Revenue,Forbes Solicitors,17527,,
Chorley Borough Council,http://statistics.data.gov.uk/id/local-authority/30UE,Central Support Services,1009,GOVN - Policy & Governance,Legal Fees,40171,Miscellaneous Expenses,5034,Legal advice and representation at civil appeal by: NAME REDACTED Against: Revocation of private hire driver licence,05/08/2022,0169504,"1,750.00",Revenue,Freddie Humphreys,78375,,
Chorley Borough Council,http://statistics.data.gov.uk/id/local-authority/30UE,Regulatory Services,1048,GOVN - Policy & Governance,Legal Fees,40171,Miscellaneous Expenses,5034,PROFESSIONAL SERVICES WITH REGARD TO NAME REDACTED (TAXI LICENSING APPEAL) - BRIEF ON APPEAL 23.6.22,05/08/2022,0169590,"1,250.00",Revenue,Freddie Humphreys,78375,,
Chorley Borough Council,http://statistics.data.gov.uk/id/local-authority/30UE,Service Management & Support,1009,CUST - Customer & Digital,Vehicles and Plant Maintenance,30045,Direct Transport Costs,5016,Membership Review for  Chorley Borough Council member no. 9055,05/08/2022,0169628,775.00,Revenue,Freight Transport Assoc Ltd,16333,,
Chorley Borough Council,http://statistics.data.gov.uk/id/local-authority/30UE,Tourism,1039,GOVN - Policy & Governance,Tools & Equipment - Hire,40004,"Equipment, Furniture & Materia",5023,Gator hire plus cleaning,19/08/2022,0170004,"1,245.00",Revenue,Gator Hire UK Ltd,85471,,
Chorley Borough Council,http://statistics.data.gov.uk/id/local-authority/30UE,Service Management & Support,1009,CUST - Customer & Digital,Hire Of Vehicles and Plant,30028,Contrct Hire & Operating Lease,5018,3 Year Contract Hire Chassis mounted   sweeper as per ITT. Including servicing   and Maintenance. to be paid monthly in arrears  ,05/08/2022,0169642,"3,782.08",Revenue,Go Plant Fleet Services Ltd,80857,,
Chorley Borough Council,http://statistics.data.gov.uk/id/local-authority/30UE,Service Management & Support,1009,CUST - Customer & Digital,Hire Of Vehicles and Plant,30028,Contrct Hire & Operating Lease,5018,3 Year Contract Hire Chassis mounted   sweeper as per ITT. Including servicing   and Maintenance. to be paid monthly in arrears  ,12/08/2022,0169789,"4,980.88",Revenue,Go Plant Fleet Services Ltd,80857,,
Chorley Borough Council,http://statistics.data.gov.uk/id/local-authority/30UE,Central Support Services,1009,CUST - Customer & Digital,Professional Fees,40063,Services,5027,Garden waste subscription payments 2022/23 for Chorley and South Ribble,12/08/2022,0169755,711.63,Revenue,GoCardless,77457,,
Chorley Borough Council,http://statistics.data.gov.uk/id/local-authority/30UE,Central Support Services,1009,PLAN - Planning & Development,Vandalism Repairs,20005,Repairs Maintenance & Alts,5005,Graffiti removal contract Feb 2022 ongoing,12/08/2022,0169638,"1,045.00",Revenue,Graffiti Away Ltd,78340,,
Chorley Borough Council,http://statistics.data.gov.uk/id/local-authority/30UE,Central Support Services,1009,PLAN - Planning & Development,Vandalism Repairs,20005,Repairs Maintenance & Alts,5005,Graffiti removal contract August 2022 ongoing,19/08/2022,0170016,"2,045.00",Revenue,Graffiti Away Ltd,78340,,
Chorley Borough Council,http://statistics.data.gov.uk/id/local-authority/30UE,Corporate Management,1008,GOVN - Policy & Governance,External Audit,40064,Services,5027,2019/20 External Audit. Agreed additional fees now approved by PSAA,26/08/2022,0169888,"17,147.00",Revenue,Grant Thornton UK LLP,57322,,
Chorley Borough Council,http://statistics.data.gov.uk/id/local-authority/30UE,Corporate Management,1008,GOVN - Policy & Governance,External Audit,40064,Services,5027,2020-21 External Audit. Additional audit fees now approved by PSAA,26/08/2022,0169889,"31,838.00",Revenue,Grant Thornton UK LLP,57322,,
Chorley Borough Council,http://statistics.data.gov.uk/id/local-authority/30UE,Corporate Management,1008,GROW - Commercial & Property,Publicity - Advertising,40157,Miscellaneous Expenses,5034,Social media for Market Walk SHopping  Centre Chorley. April - September 2022 ,05/08/2022,0169624,500.00,Revenue,Gravity,77837,,
Chorley Borough Council,http://statistics.data.gov.uk/id/local-authority/30UE,Unapportionable Central OHeads,1009,GOVN - Policy & Governance,Publicity - Advertising,40157,Miscellaneous Expenses,5034,"12 months advertising subscription to Friends of Buckshaw Village Magazine, 1 advert per month - inside front cover",05/08/2022,0169044,"2,220.00",Revenue,Green Man Marketing,73050,,
Chorley Borough Council,http://statistics.data.gov.uk/id/local-authority/30UE,Tourism,1039,GOVN - Policy & Governance,Misc Expenses,40200,Miscellaneous Expenses,5034,Demonstrations at Chorley Flower Show 2022 - Demonstration of cleft ash hurdles & pole lathe turning,05/08/2022,0169715,780.00,Revenue,Greenwood Twiggs,76970,,
Chorley Borough Council,http://statistics.data.gov.uk/id/local-authority/30UE,Central Support Services,1009,GROW - Commercial & Property,Agency Staff,13000,Direct Employee Expenses,5001,NAME REDACTED - Estates Surveyor Chorley Council,26/08/2022,0170020,"1,785.00",Revenue,Hays Senior Finance,20078,,
Chorley Borough Council,http://statistics.data.gov.uk/id/local-authority/30UE,Central Support Services,1009,GROW - Commercial & Property,Agency Staff,13000,Direct Employee Expenses,5001,NAME REDACTED - Estates Surveyor Chorley Council,26/08/2022,0170021,"1,683.00",Revenue,Hays Senior Finance,20078,,
Chorley Borough Council,http://statistics.data.gov.uk/id/local-authority/30UE,Corporate Management,1008,EARL - Communities,Other Contributions,40145,Grants and Subscriptions,5031,Delivery of Household Support Fund - phase 2,05/08/2022,0169295,"5,600.00",Revenue,Help The Homeless (Chorley),16716,,
Chorley Borough Council,http://statistics.data.gov.uk/id/local-authority/30UE,Capital,Capital,GOVN - Policy & Governance,Other Capital Related Fees,03024,Capital Expenditure,Capital,ADDRESS REDACTED,05/08/2022,0169716,"4,150.00",Capital,HM Revenue & Customs,56499,,
Chorley Borough Council,http://statistics.data.gov.uk/id/local-authority/30UE,Unapportionable Central OHeads,1009,GOVN - Policy & Governance,Misc Expenses,40200,Miscellaneous Expenses,5034,Various materials and plants purchased by Homescapes Ltd. for the Myles Standish Garden,19/08/2022,0169623,950.00,Revenue,Homescapes 1990 Ltd,83511,,
Chorley Borough Council,http://statistics.data.gov.uk/id/local-authority/30UE,Corporate Management,1008,EARL - Communities,Other Contributions,40145,Grants and Subscriptions,5031,Delivery of Household Support Fund - phase 2,05/08/2022,0169485,"17,500.00",Revenue,Home-Start Central Lancashire Ltd,20585,,
Chorley Borough Council,http://statistics.data.gov.uk/id/local-authority/30UE,Corporate Management,1008,GOVN - Policy & Governance,Other Fees,40212,Miscellaneous Expenses,5034,Subsidy for the provision of  meals on wheels service in Chorley up to 16 July 2022,05/08/2022,0169502,"2,000.25",Revenue,I Care GB Ltd,77247,,
Chorley Borough Council,http://statistics.data.gov.uk/id/local-authority/30UE,Business Support,1095,GROW - Commercial & Property,Refreshments,40036,Catering,5024,Per your invoice 9448280722. Milk deliveries for July 2022,05/08/2022,0169728,272.80,Revenue,I W Critchley & Son,77615,,
Chorley Borough Council,http://statistics.data.gov.uk/id/local-authority/30UE,Community Development,1097,GROW - Commercial & Property,Rent/Hire Of Premises,20017,Premises Rents,5007,ADDRESS REDACTEDt 12 months rent,12/08/2022,0169890,"7,218.75",Revenue,J R Keys,17124,,
Chorley Borough Council,http://statistics.data.gov.uk/id/local-authority/30UE,Tourism,1039,GOVN - Policy & Governance,Publicity - Advertising,40157,Miscellaneous Expenses,5034,July full page for Chorley Flower Show in PR Pointer and the Handbook,05/08/2022,0168921,578.00,Revenue,Jam Design and Publications Ltd,76061,,
Chorley Borough Council,http://statistics.data.gov.uk/id/local-authority/30UE,Service Management & Support,1009,CUST - Customer & Digital,Supplies-Grounds Maintenance,40025,"Equipment, Furniture & Materia",5023,Supply 50 EA galv post 65nb med (76.1 dia) 25.81 EA 1290.50 S SP/2032379 Deliver to Bengal St depot,19/08/2022,0169783,"1,355.50",Revenue,Jewsons Limited,17844,,
Chorley Borough Council,http://statistics.data.gov.uk/id/local-authority/30UE,Unapportionable Central OHeads,1009,GOVN - Policy & Governance,Publicity - Advertising,40157,Miscellaneous Expenses,5034,Advertise on the Jobs Go Public Website - Basic Package,12/08/2022,0169685,600.00,Revenue,JGP Resourcing Ltd,50012,,
Chorley Borough Council,http://statistics.data.gov.uk/id/local-authority/30UE,Tourism,1039,CUST - Customer & Digital,Safety Signs And Posters,40017,"Equipment, Furniture & Materia",5023,Supply 12 wooden sleepers,12/08/2022,0169780,300.00,Revenue,John H Mayor & Sons Ltd,16635,,
Chorley Borough Council,http://statistics.data.gov.uk/id/local-authority/30UE,Service Management & Support,1009,CUST - Customer & Digital,Supplies-Grounds Maintenance,40025,"Equipment, Furniture & Materia",5023,10 @ 3.6m x 150mm x 25mm green timber,19/08/2022,0169891,72.90,Revenue,John H Mayor & Sons Ltd,16635,,
Chorley Borough Council,http://statistics.data.gov.uk/id/local-authority/30UE,Service Management & Support,1009,CUST - Customer & Digital,Supplies-Grounds Maintenance,40025,"Equipment, Furniture & Materia",5023,20 fence posts @ 1.8m x75mm,19/08/2022,0169891,61.80,Revenue,John H Mayor & Sons Ltd,16635,,
Chorley Borough Council,http://statistics.data.gov.uk/id/local-authority/30UE,Service Management & Support,1009,CUST - Customer & Digital,Supplies-Grounds Maintenance,40025,"Equipment, Furniture & Materia",5023,10 @ 3.6m 150mm x 50mm green timber,19/08/2022,0169891,131.22,Revenue,John H Mayor & Sons Ltd,16635,,
Chorley Borough Council,http://statistics.data.gov.uk/id/local-authority/30UE,Service Management & Support,1009,CUST - Customer & Digital,Supplies-Grounds Maintenance,40025,"Equipment, Furniture & Materia",5023,10 @ 4.2m x 100mm x 38mm green timber,19/08/2022,0169891,77.58,Revenue,John H Mayor & Sons Ltd,16635,,
Chorley Borough Council,http://statistics.data.gov.uk/id/local-authority/30UE,Central Support Services,1009,GROW - Commercial & Property,Main Contractor,03007,Capital Expenditure,Capital,Alker Lane Design & Build Contract,26/08/2022,0170005,"268,042.90",Revenue,John Turner Construction Group Limited,82376,,
Chorley Borough Council,http://statistics.data.gov.uk/id/local-authority/30UE,Business Support,1095,GROW - Commercial & Property,Uniforms,40039,"Clothing, Uniforms and Laundry",5025,"4 x sweatshirt black 2XS, 2 M, 2 x polo shirt black XL (LB embroidered Chorley Council/RB M Logo in white)",19/08/2022,0169173,113.10,Revenue,Keltic Clothing,21988,,
Chorley Borough Council,http://statistics.data.gov.uk/id/local-authority/30UE,Parking Services,1066,GROW - Commercial & Property,Uniforms,40039,"Clothing, Uniforms and Laundry",5025,3 x ladies pilot shirt s/s white size 16 2 x patrol shirt s/s red/black L 1 x Ambassador II Jacket red/black L,19/08/2022,0169173,252.35,Revenue,Keltic Clothing,21988,,
Chorley Borough Council,http://statistics.data.gov.uk/id/local-authority/30UE,Business Support,1095,GROW - Commercial & Property,Uniforms,40039,"Clothing, Uniforms and Laundry",5025,"1 x plain standard fleece, size 12 (LB embroidered Chorley Council/RB M Logo in white) LB Logo RB Logo Logo surcharge ",19/08/2022,0169173,27.85,Revenue,Keltic Clothing,21988,,
Chorley Borough Council,http://statistics.data.gov.uk/id/local-authority/30UE,Open Spaces,1038,CUST - Customer & Digital,Playground Equipment,40008,"Equipment, Furniture & Materia",5023,"Supply A903084-06 1000 TPE/PP BUMPER 2 Pieces 120.00 20.00 192.00 A903077-52 BUSHING 10X8,5X23,8 4 Pieces 3.00 ",19/08/2022,0169414,264.20,Revenue,Kompan,61460,,
Chorley Borough Council,http://statistics.data.gov.uk/id/local-authority/30UE,Corporate Management,1008,EARL - Communities,Other Contributions,40145,Grants and Subscriptions,5031,Supermarket vouchers for food,05/08/2022,0169416,"7,500.00",Revenue,Lancashire County Council,17758,,
Chorley Borough Council,http://statistics.data.gov.uk/id/local-authority/30UE,Capital,Capital,PLAN - Planning & Development,Main Contractor,03007,Capital Expenditure,Capital,"S278 Supervision fees at Wigan Lane, Heath Charnock,  PR7 4BY.",19/08/2022,0169894,"1,935.00",Capital,Lancashire County Council,20027,,
Chorley Borough Council,http://statistics.data.gov.uk/id/local-authority/30UE,Capital,Capital,EARL - Communities,Grants,03002,Capital Expenditure,Capital,,26/08/2022,0170086,"1,221.00",Capital,Lancashire County Council,17758,,
Chorley Borough Council,http://statistics.data.gov.uk/id/local-authority/30UE,Capital,Capital,EARL - Communities,Grants,03002,Capital Expenditure,Capital,ADDRESS REDACTED,26/08/2022,0170087,"2,915.00",Capital,Lancashire County Council,17758,,
Chorley Borough Council,http://statistics.data.gov.uk/id/local-authority/30UE,Capital,Capital,GROW - Commercial & Property,Other Expenses,03030,Capital Expenditure,Capital,section 278 agreement,05/08/2022,0169700,"1,500.00",Capital,Lancashire County Council Highways,18845,,
Chorley Borough Council,http://statistics.data.gov.uk/id/local-authority/30UE,Central Support Services,1009,CUST - Customer & Digital,Clinical Waste Collection,50007,Private Contractors,5042,Domestic clinical waste collections 2022,05/08/2022,0169488,"2,373.24",Revenue,Lancashire Environmental Services,82309,,
Chorley Borough Council,http://statistics.data.gov.uk/id/local-authority/30UE,Central Support Services,1009,CUST - Customer & Digital,Clinical Waste Collection,50007,Private Contractors,5042,Domestic clinical waste collections 2022,12/08/2022,0169958,"1,860.73",Revenue,Lancashire Environmental Services,82309,,
Chorley Borough Council,http://statistics.data.gov.uk/id/local-authority/30UE,Unapportionable Central OHeads,1009,GROW - Commercial & Property,General Repairs - Reactive,20004,Repairs Maintenance & Alts,5005,Sports pitches and pavilions   - Gas / Air Con / Plumbing  Reactive Repairs,26/08/2022,0169903,456.00,Revenue,Lancashire Gas Services Ltd,78192,,
Chorley Borough Council,http://statistics.data.gov.uk/id/local-authority/30UE,Unapportionable Central OHeads,1009,GROW - Commercial & Property,General Repairs - Reactive,20004,Repairs Maintenance & Alts,5005,Community Centres   - Gas / Air Con / Plumbing  Reactive Repairs,26/08/2022,0169904,627.86,Revenue,Lancashire Gas Services Ltd,78192,,
Chorley Borough Council,http://statistics.data.gov.uk/id/local-authority/30UE,Unapportionable Central OHeads,1009,GROW - Commercial & Property,General Repairs - Reactive,20004,Repairs Maintenance & Alts,5005,Astley hall and Buildings   - Gas / Air Con / Plumbing  Reactive Repairs,26/08/2022,0169905,341.77,Revenue,Lancashire Gas Services Ltd,78192,,
Chorley Borough Council,http://statistics.data.gov.uk/id/local-authority/30UE,Unapportionable Central OHeads,1009,GROW - Commercial & Property,General Repairs - Reactive,20004,Repairs Maintenance & Alts,5005,Cotswold   - Gas / Air Con / Plumbing  Reactive Repairs,26/08/2022,0169907,"1,858.48",Revenue,Lancashire Gas Services Ltd,78192,,
Chorley Borough Council,http://statistics.data.gov.uk/id/local-authority/30UE,Unapportionable Central OHeads,1009,GROW - Commercial & Property,General Repairs - Reactive,20004,Repairs Maintenance & Alts,5005,Primrose   - Gas / Air Con / Plumbing  Reactive Repairs,26/08/2022,0169908,"1,083.00",Revenue,Lancashire Gas Services Ltd,78192,,
Chorley Borough Council,http://statistics.data.gov.uk/id/local-authority/30UE,Unapportionable Central OHeads,1009,GROW - Commercial & Property,General Repairs - Reactive,20004,Repairs Maintenance & Alts,5005,Union St   - Gas / Air Con / Plumbing  Reactive Repairs,26/08/2022,0169910,458.73,Revenue,Lancashire Gas Services Ltd,78192,,
Chorley Borough Council,http://statistics.data.gov.uk/id/local-authority/30UE,Unapportionable Central OHeads,1009,GROW - Commercial & Property,Planned Maintenance,20006,Repairs Maintenance & Alts,5005,Primrose  - Heating and Air Con Planned Maintenance and remedials,26/08/2022,0169916,"1,133.25",Revenue,Lancashire Gas Services Ltd,78192,,
Chorley Borough Council,http://statistics.data.gov.uk/id/local-authority/30UE,Unapportionable Central OHeads,1009,GROW - Commercial & Property,Planned Maintenance,20006,Repairs Maintenance & Alts,5005,Housing  - Heating  Planned Maintenance and remedials,26/08/2022,0169929,345.72,Revenue,Lancashire Gas Services Ltd,78192,,
Chorley Borough Council,http://statistics.data.gov.uk/id/local-authority/30UE,Unapportionable Central OHeads,1009,GROW - Commercial & Property,Planned Maintenance,20006,Repairs Maintenance & Alts,5005,Town Hall  - Heating and Air Con Planned Maintenance and remedials,26/08/2022,0169934,378.00,Revenue,Lancashire Gas Services Ltd,78192,,
Chorley Borough Council,http://statistics.data.gov.uk/id/local-authority/30UE,Business Support,1095,GROW - Commercial & Property,Planned Maintenance,20006,Repairs Maintenance & Alts,5005,Strawberry fields  - Heating and Air Con Planned Maintenance and remedials,26/08/2022,0169935,"3,523.50",Revenue,Lancashire Gas Services Ltd,78192,,
Chorley Borough Council,http://statistics.data.gov.uk/id/local-authority/30UE,Tourism,1039,PLAN - Planning & Development,External Contractor,40198,Miscellaneous Expenses,5034,Works to Astley Park Tennis ourts Access in accordance with NAME REDACTED email of 5th July,12/08/2022,0169344,940.00,Revenue,Landscape Engineering Ltd,54727,,
Chorley Borough Council,http://statistics.data.gov.uk/id/local-authority/30UE,Homelessness,1075,EARL - Communities,Consultants` Fees,40077,Services,5027,Review by NAME REDACTED of Housing Solutions services in Chorley and South Ribble. Cost to be shared 50/50 with SRBC,05/08/2022,0169589,"10,000.00",Revenue,Laura Paterson Ltd,85298,,
Chorley Borough Council,http://statistics.data.gov.uk/id/local-authority/30UE,Central Support Services,1009,GOVN - Policy & Governance,Publications,40054,"Printing, Stationery & General",5026,STONES JUSTICE MANUAL AND CD SET 2022 (PUBLICATION DATE 30/06/202),05/08/2022,0169184,509.84,Revenue,Lexis Nexis UK,16688,,
Chorley Borough Council,http://statistics.data.gov.uk/id/local-authority/30UE,Central Support Services,1009,GOVN - Policy & Governance,Publications,40054,"Printing, Stationery & General",5026,,05/08/2022,0169184,480.15,Revenue,Lexis Nexis UK,16688,,
Chorley Borough Council,http://statistics.data.gov.uk/id/local-authority/30UE,Central Support Services,1009,GOVN - Policy & Governance,Publications,40054,"Printing, Stationery & General",5026,crriage,05/08/2022,0169184,7.00,Revenue,Lexis Nexis UK,16688,,
Chorley Borough Council,http://statistics.data.gov.uk/id/local-authority/30UE,Unapportionable Central OHeads,1009,GOVN - Policy & Governance,HR Approved Occ Health Fees,15201,Indirect Employee Expenses,5002,Counselling for Staff in June 2022,12/08/2022,0169259,450.00,Revenue,Livewell Counselling Service,63084,,
Chorley Borough Council,http://statistics.data.gov.uk/id/local-authority/30UE,Corporate Management,1008,EARL - Communities,Other Contributions,40145,Grants and Subscriptions,5031,Delivery of Household Support Fund - phase 2,05/08/2022,0169422,"15,375.00",Revenue,Living Waters Storehouse,60925,,
Chorley Borough Council,http://statistics.data.gov.uk/id/local-authority/30UE,Democratic Represent and  Mgnt,1007,GOVN - Policy & Governance,General Subscriptions,40146,Grants and Subscriptions,5031,LGA Membership Subscription 2022-23,19/08/2022,0170083,"11,089.63",Revenue,Local Government Association,16243,,
Chorley Borough Council,http://statistics.data.gov.uk/id/local-authority/30UE,Unapportionable Central OHeads,1009,GOVN - Policy & Governance,Stationery,40050,"Printing, Stationery & General",5026,MAPED ADVANCED GREEN SCISSORS 21CM ASY,26/08/2022,0170157,5.06,Revenue,Lyreco UK Ltd,17623,,
Chorley Borough Council,http://statistics.data.gov.uk/id/local-authority/30UE,Unapportionable Central OHeads,1009,GOVN - Policy & Governance,Stationery,40050,"Printing, Stationery & General",5026,PK6 LYRECO CLEAR TAPE 25MMX66M,26/08/2022,0170157,3.99,Revenue,Lyreco UK Ltd,17623,,
Chorley Borough Council,http://statistics.data.gov.uk/id/local-authority/30UE,Unapportionable Central OHeads,1009,GOVN - Policy & Governance,Stationery,40050,"Printing, Stationery & General",5026,LYRECO BUDGET ASSORTED COLOUR A4 12 PART DIVIDERS 160GSM,26/08/2022,0170157,0.14,Revenue,Lyreco UK Ltd,17623,,
Chorley Borough Council,http://statistics.data.gov.uk/id/local-authority/30UE,Unapportionable Central OHeads,1009,GOVN - Policy & Governance,Stationery,40050,"Printing, Stationery & General",5026,BX5000 LYRECO 24/6 STAPLES,26/08/2022,0170157,0.40,Revenue,Lyreco UK Ltd,17623,,
Chorley Borough Council,http://statistics.data.gov.uk/id/local-authority/30UE,Unapportionable Central OHeads,1009,GOVN - Policy & Governance,Stationery,40050,"Printing, Stationery & General",5026,LYRECO BUDGET PIN/CLIP BADGES 55 X 90MM - BOX OF 50,26/08/2022,0170157,60.72,Revenue,Lyreco UK Ltd,17623,,
Chorley Borough Council,http://statistics.data.gov.uk/id/local-authority/30UE,Unapportionable Central OHeads,1009,GOVN - Policy & Governance,Stationery,40050,"Printing, Stationery & General",5026,LYRECO B/POINT PEN MED POINT BLK,26/08/2022,0170157,2.52,Revenue,Lyreco UK Ltd,17623,,
Chorley Borough Council,http://statistics.data.gov.uk/id/local-authority/30UE,Unapportionable Central OHeads,1009,GOVN - Policy & Governance,Stationery,40050,"Printing, Stationery & General",5026,PK100 LYRECO PUNCHED POCK A5 80MI,26/08/2022,0170157,12.86,Revenue,Lyreco UK Ltd,17623,,
Chorley Borough Council,http://statistics.data.gov.uk/id/local-authority/30UE,Unapportionable Central OHeads,1009,GOVN - Policy & Governance,Stationery,40050,"Printing, Stationery & General",5026,LYRECO CREPE MASKING TAPE - 25MM X 50M ROLL,26/08/2022,0170157,4.80,Revenue,Lyreco UK Ltd,17623,,
Chorley Borough Council,http://statistics.data.gov.uk/id/local-authority/30UE,Unapportionable Central OHeads,1009,GOVN - Policy & Governance,Stationery,40050,"Printing, Stationery & General",5026,PUKKA PAD PROJECT BK 250SHT A5 BLK/SILV,26/08/2022,0170157,32.52,Revenue,Lyreco UK Ltd,17623,,
Chorley Borough Council,http://statistics.data.gov.uk/id/local-authority/30UE,Unapportionable Central OHeads,1009,GOVN - Policy & Governance,Stationery,40050,"Printing, Stationery & General",5026,PUKKA PAD PROJECT BOOK 250 SHEET A4 BLACK / SILVER - PACK OF 3,26/08/2022,0170157,53.70,Revenue,Lyreco UK Ltd,17623,,
Chorley Borough Council,http://statistics.data.gov.uk/id/local-authority/30UE,Unapportionable Central OHeads,1009,GOVN - Policy & Governance,Stationery,40050,"Printing, Stationery & General",5026,Lyreco Black No.26/6 Plastic Full Strip Stapler - 20 Sheet Capacity,26/08/2022,0170157,1.68,Revenue,Lyreco UK Ltd,17623,,
Chorley Borough Council,http://statistics.data.gov.uk/id/local-authority/30UE,Unapportionable Central OHeads,1009,GOVN - Policy & Governance,Stationery,40050,"Printing, Stationery & General",5026,BX1000 LYRECO 26/6 STAPLES,26/08/2022,0170157,1.18,Revenue,Lyreco UK Ltd,17623,,
Chorley Borough Council,http://statistics.data.gov.uk/id/local-authority/30UE,Unapportionable Central OHeads,1009,GOVN - Policy & Governance,Stationery,40050,"Printing, Stationery & General",5026,"5C5 WINDOW ENVELOPES (WHITE, SELF SEAL)",26/08/2022,0170157,18.32,Revenue,Lyreco UK Ltd,17623,,
Chorley Borough Council,http://statistics.data.gov.uk/id/local-authority/30UE,Unapportionable Central OHeads,1009,GOVN - Policy & Governance,Stationery,40050,"Printing, Stationery & General",5026,Notebooks,26/08/2022,0170157,35.60,Revenue,Lyreco UK Ltd,17623,,
Chorley Borough Council,http://statistics.data.gov.uk/id/local-authority/30UE,Unapportionable Central OHeads,1009,GOVN - Policy & Governance,Stationery,40050,"Printing, Stationery & General",5026, A4 Multi-Punched Plastic Pockets 80 Microns - Pack Of 100,26/08/2022,0170157,38.58,Revenue,Lyreco UK Ltd,17623,,
Chorley Borough Council,http://statistics.data.gov.uk/id/local-authority/30UE,Unapportionable Central OHeads,1009,GOVN - Policy & Governance,Stationery,40050,"Printing, Stationery & General",5026,A4 twinwire manuscript books,26/08/2022,0170157,4.65,Revenue,Lyreco UK Ltd,17623,,
Chorley Borough Council,http://statistics.data.gov.uk/id/local-authority/30UE,Unapportionable Central OHeads,1009,GOVN - Policy & Governance,Stationery,40050,"Printing, Stationery & General",5026,Lyreco Twinwire Manuscript Books A5,26/08/2022,0170157,7.00,Revenue,Lyreco UK Ltd,17623,,
Chorley Borough Council,http://statistics.data.gov.uk/id/local-authority/30UE,Unapportionable Central OHeads,1009,GOVN - Policy & Governance,Stationery,40050,"Printing, Stationery & General",5026,`Things to do Today` book,26/08/2022,0170157,3.09,Revenue,Lyreco UK Ltd,17623,,
Chorley Borough Council,http://statistics.data.gov.uk/id/local-authority/30UE,Unapportionable Central OHeads,1009,GOVN - Policy & Governance,Stationery,40050,"Printing, Stationery & General",5026,Black Stamp pad for bespoke stamp Trodat 5480,26/08/2022,0170157,30.38,Revenue,Lyreco UK Ltd,17623,,
Chorley Borough Council,http://statistics.data.gov.uk/id/local-authority/30UE,Unapportionable Central OHeads,1009,GOVN - Policy & Governance,Stationery,40050,"Printing, Stationery & General",5026,FOCUS MEDIUM POINT BALL PEN BLACK - BOX OF 50,26/08/2022,0170157,1.50,Revenue,Lyreco UK Ltd,17623,,
Chorley Borough Council,http://statistics.data.gov.uk/id/local-authority/30UE,Business Support,1095,GROW - Commercial & Property,Stationery,40050,"Printing, Stationery & General",5026,Lyreco plastic stapler -Lyreco staples No 26/6 Micron Pens box of 50 Lyreco things to do book Oxford black and red A4 notebook,26/08/2022,0170158,351.16,Revenue,Lyreco UK Ltd,17623,,
Chorley Borough Council,http://statistics.data.gov.uk/id/local-authority/30UE,Business Support,1095,GROW - Commercial & Property,Stationery,40050,"Printing, Stationery & General",5026,uht milk pot,26/08/2022,0170158,11.99,Revenue,Lyreco UK Ltd,17623,,
Chorley Borough Council,http://statistics.data.gov.uk/id/local-authority/30UE,Service Management & Support,1009,CUST - Customer & Digital,Grounds Maintenance Contractor,20043,Grounds Maintenance Costs,5013,Invoice 63 - Work completed in April and May 2022,05/08/2022,0169674,"4,950.00",Revenue,M J Walker,62044,,
Chorley Borough Council,http://statistics.data.gov.uk/id/local-authority/30UE,Tourism,1039,GOVN - Policy & Governance,Misc Expenses,40200,Miscellaneous Expenses,5034,Chorley Flower Show Children`s Activity Option 2 - If the flowers could talk themed crafty creation story station,19/08/2022,0170024,"1,875.00",Revenue,Magical Story Jars,77817,,
Chorley Borough Council,http://statistics.data.gov.uk/id/local-authority/30UE,Development Control,1091,GOVN - Policy & Governance,Legal Fees,40171,Miscellaneous Expenses,5034,Wymott and Garth Prisons Representation at first day only of hearing of appeal before inspector against refusal of planning permission,12/08/2022,0169998,"1,500.00",Revenue,Mark Howells,85514,,
Chorley Borough Council,http://statistics.data.gov.uk/id/local-authority/30UE,Tourism,1039,GOVN - Policy & Governance,External Contractor,40198,Miscellaneous Expenses,5034,"Potting Shed Roadshow for Chorley Flower Show. This includes panel of two for 3 days of the show, prep time, hire of stage trailer ",05/08/2022,0169666,"3,700.00",Revenue,Martin Fish Ltd,76761,,
Chorley Borough Council,http://statistics.data.gov.uk/id/local-authority/30UE,Building Control,1090,PLAN - Planning & Development,Agency Staff,13000,Direct Employee Expenses,5001,Agency fees for NAME REDACTED Building Control Officer for the period 07.07.2022 - 29.07.2022,19/08/2022,0169676,"2,145.00",Revenue,Matchtech,77343,,
Chorley Borough Council,http://statistics.data.gov.uk/id/local-authority/30UE,Corporate Management,1008,GOVN - Policy & Governance,Agency Staff,13000,Direct Employee Expenses,5001,Management accounts (Covid-19 Staff),12/08/2022,0169039,577.37,Revenue,Matrix SCM Ltd,22128,,
Chorley Borough Council,http://statistics.data.gov.uk/id/local-authority/30UE,Corporate Management,1008,GOVN - Policy & Governance,Agency Staff,13000,Direct Employee Expenses,5001,management accounts (Covid-19 Staff),12/08/2022,0169040,610.47,Revenue,Matrix SCM Ltd,22128,,
Chorley Borough Council,http://statistics.data.gov.uk/id/local-authority/30UE,Corporate Management,1008,GOVN - Policy & Governance,Agency Staff,13000,Direct Employee Expenses,5001,NAME REDACTED  ,12/08/2022,0169105,492.80,Revenue,Matrix SCM Ltd,22128,,
Chorley Borough Council,http://statistics.data.gov.uk/id/local-authority/30UE,Corporate Management,1008,GOVN - Policy & Governance,Agency Staff,13000,Direct Employee Expenses,5001,NAME REDACTED  ,12/08/2022,0169188,588.40,Revenue,Matrix SCM Ltd,22128,,
Chorley Borough Council,http://statistics.data.gov.uk/id/local-authority/30UE,Corporate Management,1008,GOVN - Policy & Governance,Agency Staff,13000,Direct Employee Expenses,5001,NAME REDACTED  ,12/08/2022,0169423,595.76,Revenue,Matrix SCM Ltd,22128,,
Chorley Borough Council,http://statistics.data.gov.uk/id/local-authority/30UE,Corporate Management,1008,GOVN - Policy & Governance,Agency Staff,13000,Direct Employee Expenses,5001,,12/08/2022,0169664,595.76,Revenue,Matrix SCM Ltd,22128,,
Chorley Borough Council,http://statistics.data.gov.uk/id/local-authority/30UE,Corporate Management,1008,GOVN - Policy & Governance,Agency Staff,13000,Direct Employee Expenses,5001,NAME REDACTED  ,12/08/2022,0169822,599.44,Revenue,Matrix SCM Ltd,22128,,
Chorley Borough Council,http://statistics.data.gov.uk/id/local-authority/30UE,Unapportionable Central OHeads,1009,GROW - Commercial & Property,Planned Maintenance,20006,Repairs Maintenance & Alts,5005,Astley Hall and Buildings  - Monthly Water Monitoring 12 mths ,26/08/2022,0169351,75.00,Revenue,Maxigiene Environmental Services Ltd,67160,,
Chorley Borough Council,http://statistics.data.gov.uk/id/local-authority/30UE,Unapportionable Central OHeads,1009,GROW - Commercial & Property,Planned Maintenance,20006,Repairs Maintenance & Alts,5005,Parks Buildings  - Monthly Water Monitoring 12 mths ,26/08/2022,0169351,40.00,Revenue,Maxigiene Environmental Services Ltd,67160,,
Chorley Borough Council,http://statistics.data.gov.uk/id/local-authority/30UE,Unapportionable Central OHeads,1009,GROW - Commercial & Property,Planned Maintenance,20006,Repairs Maintenance & Alts,5005,Community Centres  - Monthly Water Monitoring 12 mths,26/08/2022,0169351,169.16,Revenue,Maxigiene Environmental Services Ltd,67160,,
Chorley Borough Council,http://statistics.data.gov.uk/id/local-authority/30UE,Unapportionable Central OHeads,1009,GROW - Commercial & Property,Planned Maintenance,20006,Repairs Maintenance & Alts,5005,wc`s   - Monthly Water Monitoring 12 mths,26/08/2022,0169351,65.00,Revenue,Maxigiene Environmental Services Ltd,67160,,
Chorley Borough Council,http://statistics.data.gov.uk/id/local-authority/30UE,Unapportionable Central OHeads,1009,GROW - Commercial & Property,Planned Maintenance,20006,Repairs Maintenance & Alts,5005,sports pitches and pavilions   - Monthly Water Monitoring 12 mths ,26/08/2022,0169351,72.08,Revenue,Maxigiene Environmental Services Ltd,67160,,
Chorley Borough Council,http://statistics.data.gov.uk/id/local-authority/30UE,Unapportionable Central OHeads,1009,GROW - Commercial & Property,Planned Maintenance,20006,Repairs Maintenance & Alts,5005,Bengal St  - Monthly Water Monitoring 12 mths,26/08/2022,0169351,25.00,Revenue,Maxigiene Environmental Services Ltd,67160,,
Chorley Borough Council,http://statistics.data.gov.uk/id/local-authority/30UE,Unapportionable Central OHeads,1009,GROW - Commercial & Property,Planned Maintenance,20006,Repairs Maintenance & Alts,5005,chorley cemetery  - Monthly Water Monitoring 12 mths ,26/08/2022,0169351,20.00,Revenue,Maxigiene Environmental Services Ltd,67160,,
Chorley Borough Council,http://statistics.data.gov.uk/id/local-authority/30UE,Community Development,1097,GROW - Commercial & Property,Planned Maintenance,20006,Repairs Maintenance & Alts,5005,CAB  35-39 Market St  - Monthly Water Monitoring 12 mths ,26/08/2022,0169351,20.00,Revenue,Maxigiene Environmental Services Ltd,67160,,
Chorley Borough Council,http://statistics.data.gov.uk/id/local-authority/30UE,Business Support,1095,GROW - Commercial & Property,Planned Maintenance,20006,Repairs Maintenance & Alts,5005,MW   Market Walk  - Monthly Water Monitoring 12 mths ,26/08/2022,0169351,20.00,Revenue,Maxigiene Environmental Services Ltd,67160,,
Chorley Borough Council,http://statistics.data.gov.uk/id/local-authority/30UE,Unapportionable Central OHeads,1009,GROW - Commercial & Property,Planned Maintenance,20006,Repairs Maintenance & Alts,5005,Cotswold  - Monthly Water Monitoring 12 mths ,26/08/2022,0169351,20.00,Revenue,Maxigiene Environmental Services Ltd,67160,,
Chorley Borough Council,http://statistics.data.gov.uk/id/local-authority/30UE,Unapportionable Central OHeads,1009,GROW - Commercial & Property,Planned Maintenance,20006,Repairs Maintenance & Alts,5005,Market  - Monthly Water Monitoring 12 mths ,26/08/2022,0169351,20.00,Revenue,Maxigiene Environmental Services Ltd,67160,,
Chorley Borough Council,http://statistics.data.gov.uk/id/local-authority/30UE,Unapportionable Central OHeads,1009,GROW - Commercial & Property,Planned Maintenance,20006,Repairs Maintenance & Alts,5005,Primrose  - Monthly Water Monitoring 12 mths ,26/08/2022,0169351,30.00,Revenue,Maxigiene Environmental Services Ltd,67160,,
Chorley Borough Council,http://statistics.data.gov.uk/id/local-authority/30UE,Business Support,1095,GROW - Commercial & Property,Planned Maintenance,20006,Repairs Maintenance & Alts,5005,Strawberry Fields  - Monthly Water Monitoring 12 mths ,26/08/2022,0169351,30.00,Revenue,Maxigiene Environmental Services Ltd,67160,,
Chorley Borough Council,http://statistics.data.gov.uk/id/local-authority/30UE,Unapportionable Central OHeads,1009,GROW - Commercial & Property,Planned Maintenance,20006,Repairs Maintenance & Alts,5005,Town Hall  - Monthly Water Monitoring 12 mths ,26/08/2022,0169351,25.00,Revenue,Maxigiene Environmental Services Ltd,67160,,
Chorley Borough Council,http://statistics.data.gov.uk/id/local-authority/30UE,Unapportionable Central OHeads,1009,GROW - Commercial & Property,Planned Maintenance,20006,Repairs Maintenance & Alts,5005,Union St  - Monthly Water Monitoring 12 mths ,26/08/2022,0169351,25.00,Revenue,Maxigiene Environmental Services Ltd,67160,,
Chorley Borough Council,http://statistics.data.gov.uk/id/local-authority/30UE,Unapportionable Central OHeads,1009,GROW - Commercial & Property,Planned Maintenance,20006,Repairs Maintenance & Alts,5005,Westway  - Monthly Water Monitoring 12 mths ,26/08/2022,0169351,30.00,Revenue,Maxigiene Environmental Services Ltd,67160,,
Chorley Borough Council,http://statistics.data.gov.uk/id/local-authority/30UE,Business Support,1095,GROW - Commercial & Property,General Repairs - Reactive,20004,Repairs Maintenance & Alts,5005, Market Walk Ext  -  Drainage Reactive Repairs,26/08/2022,0169548,315.00,Revenue,Michael Roe,78294,,
Chorley Borough Council,http://statistics.data.gov.uk/id/local-authority/30UE,Business Support,1095,GROW - Commercial & Property,General Repairs - Reactive,20004,Repairs Maintenance & Alts,5005, Market Walk Ext  -  Drainage Reactive Repairs,26/08/2022,0169551,280.00,Revenue,Michael Roe,78294,,
Chorley Borough Council,http://statistics.data.gov.uk/id/local-authority/30UE,Unapportionable Central OHeads,1009,GROW - Commercial & Property,General Repairs - Reactive,20004,Repairs Maintenance & Alts,5005,Market   -  Drainage  Reactive Repairs,26/08/2022,0169810,280.00,Revenue,Michael Roe,78294,,
Chorley Borough Council,http://statistics.data.gov.uk/id/local-authority/30UE,Unapportionable Central OHeads,1009,GROW - Commercial & Property,General Repairs - Reactive,20004,Repairs Maintenance & Alts,5005,Commercial   -  Drainage  Reactive Repairs,26/08/2022,0169813,360.00,Revenue,Michael Roe,78294,,
Chorley Borough Council,http://statistics.data.gov.uk/id/local-authority/30UE,Unapportionable Central OHeads,1009,GROW - Commercial & Property,General Repairs - Reactive,20004,Repairs Maintenance & Alts,5005,Parks   -  Drainage  Reactive Repairs,26/08/2022,0169814,280.00,Revenue,Michael Roe,78294,,
Chorley Borough Council,http://statistics.data.gov.uk/id/local-authority/30UE,Unapportionable Central OHeads,1009,GROW - Commercial & Property,General Repairs - Reactive,20004,Repairs Maintenance & Alts,5005,Astley Hall and Buildings   -  Drainage  Reactive Repairs,26/08/2022,0169815,360.00,Revenue,Michael Roe,78294,,
Chorley Borough Council,http://statistics.data.gov.uk/id/local-authority/30UE,Unapportionable Central OHeads,1009,GROW - Commercial & Property,General Repairs - Reactive,20004,Repairs Maintenance & Alts,5005,Parks   -  Drainage  Reactive Repairs,26/08/2022,0169816,330.00,Revenue,Michael Roe,78294,,
Chorley Borough Council,http://statistics.data.gov.uk/id/local-authority/30UE,Unapportionable Central OHeads,1009,GROW - Commercial & Property,General Repairs - Reactive,20004,Repairs Maintenance & Alts,5005,Market   -  Drainage  Reactive Repairs,26/08/2022,0169817,560.00,Revenue,Michael Roe,78294,,
Chorley Borough Council,http://statistics.data.gov.uk/id/local-authority/30UE,Business Support,1095,GROW - Commercial & Property,General Repairs - Reactive,20004,Repairs Maintenance & Alts,5005, Market Walk Ext  -  Drainage Reactive Repairs,26/08/2022,0169818,280.00,Revenue,Michael Roe,78294,,
Chorley Borough Council,http://statistics.data.gov.uk/id/local-authority/30UE,Service Management & Support,1009,CUST - Customer & Digital,Maintenance Street Furniture,20055,Grounds Maintenance Costs,5013,1x Derek Road T 1x 46-63 Long Meadows 1x Westwood Road 1x Blackthorn Croft 1x Wrennalls Lane 1x Yewtree Close ,05/08/2022,0169644,295.00,Revenue,Midland Signs (Leicester) Ltd,16606,,
Chorley Borough Council,http://statistics.data.gov.uk/id/local-authority/30UE,Open Spaces,1038,CUST - Customer & Digital,Supplies-Grounds Maintenance,40025,"Equipment, Furniture & Materia",5023,"Supply various summer troughs, baskets and lamp post baskets",26/08/2022,0170156,"7,852.37",Revenue,Midstream (West Lancs) Ltd,20873,,
Chorley Borough Council,http://statistics.data.gov.uk/id/local-authority/30UE,Central Support Services,1009,EARL - Communities,Misc Expenses,40200,Miscellaneous Expenses,5034,Event Cancellation fee,26/08/2022,0168953,384.00,Revenue,Mike Bryan,77185,,
Chorley Borough Council,http://statistics.data.gov.uk/id/local-authority/30UE,Homelessness,1075,EARL - Communities,Misc Expenses,40200,Miscellaneous Expenses,5034,"Tuesdays July  19th, 26th August  2nd, 9th, 16th, 23rd, 30th September  6th, 13th, 20th, 27th October  4th",26/08/2022,0169673,"1,440.00",Revenue,Mike Bryan,77185,,
Chorley Borough Council,http://statistics.data.gov.uk/id/local-authority/30UE,Homelessness,1075,EARL - Communities,Grants to Voluntary Organisations,40124,Grants and Subscriptions,5031,Catering for Ukraine Welcome Event Bees Butties & More150 x 6.00 per person,26/08/2022,0170172,900.00,Revenue,Mike Bryan,77185,,
Chorley Borough Council,http://statistics.data.gov.uk/id/local-authority/30UE,Capital,Capital,EARL - Communities,Grants,03002,Capital Expenditure,Capital,ADDRESS REDACTED,19/08/2022,0169990,"10,005.00",Capital,Mint Northwest Ltd,65607,,
Chorley Borough Council,http://statistics.data.gov.uk/id/local-authority/30UE,Private Sector HSG Renewal,1073,EARL - Communities,External Contractor,40198,Miscellaneous Expenses,5034,Ref 6602,12/08/2022,0169003,68.00,Revenue,Mobility Care Services,70841,,
Chorley Borough Council,http://statistics.data.gov.uk/id/local-authority/30UE,Private Sector HSG Renewal,1073,EARL - Communities,External Contractor,40198,Miscellaneous Expenses,5034,Ref 6603,12/08/2022,0169003,85.00,Revenue,Mobility Care Services,70841,,
Chorley Borough Council,http://statistics.data.gov.uk/id/local-authority/30UE,Private Sector HSG Renewal,1073,EARL - Communities,External Contractor,40198,Miscellaneous Expenses,5034,Ref 6604,12/08/2022,0169003,85.00,Revenue,Mobility Care Services,70841,,
Chorley Borough Council,http://statistics.data.gov.uk/id/local-authority/30UE,Private Sector HSG Renewal,1073,EARL - Communities,External Contractor,40198,Miscellaneous Expenses,5034,Ref 6605,12/08/2022,0169003,68.00,Revenue,Mobility Care Services,70841,,
Chorley Borough Council,http://statistics.data.gov.uk/id/local-authority/30UE,Private Sector HSG Renewal,1073,EARL - Communities,External Contractor,40198,Miscellaneous Expenses,5034,Ref 6606,12/08/2022,0169003,75.00,Revenue,Mobility Care Services,70841,,
Chorley Borough Council,http://statistics.data.gov.uk/id/local-authority/30UE,Private Sector HSG Renewal,1073,EARL - Communities,External Contractor,40198,Miscellaneous Expenses,5034,Ref 6607,12/08/2022,0169003,102.00,Revenue,Mobility Care Services,70841,,
Chorley Borough Council,http://statistics.data.gov.uk/id/local-authority/30UE,Private Sector HSG Renewal,1073,EARL - Communities,External Contractor,40198,Miscellaneous Expenses,5034,Ref 6608,12/08/2022,0169003,229.00,Revenue,Mobility Care Services,70841,,
Chorley Borough Council,http://statistics.data.gov.uk/id/local-authority/30UE,Private Sector HSG Renewal,1073,EARL - Communities,External Contractor,40198,Miscellaneous Expenses,5034,Ref 6609,12/08/2022,0169003,114.50,Revenue,Mobility Care Services,70841,,
Chorley Borough Council,http://statistics.data.gov.uk/id/local-authority/30UE,Private Sector HSG Renewal,1073,EARL - Communities,External Contractor,40198,Miscellaneous Expenses,5034,Ref 6610,12/08/2022,0169003,229.00,Revenue,Mobility Care Services,70841,,
Chorley Borough Council,http://statistics.data.gov.uk/id/local-authority/30UE,Private Sector HSG Renewal,1073,EARL - Communities,External Contractor,40198,Miscellaneous Expenses,5034,Ref 6611,12/08/2022,0169003,114.50,Revenue,Mobility Care Services,70841,,
Chorley Borough Council,http://statistics.data.gov.uk/id/local-authority/30UE,Private Sector HSG Renewal,1073,EARL - Communities,External Contractor,40198,Miscellaneous Expenses,5034,Ref 6612,12/08/2022,0169003,132.00,Revenue,Mobility Care Services,70841,,
Chorley Borough Council,http://statistics.data.gov.uk/id/local-authority/30UE,Private Sector HSG Renewal,1073,EARL - Communities,External Contractor,40198,Miscellaneous Expenses,5034,Ref 6613,12/08/2022,0169003,114.50,Revenue,Mobility Care Services,70841,,
Chorley Borough Council,http://statistics.data.gov.uk/id/local-authority/30UE,Private Sector HSG Renewal,1073,EARL - Communities,External Contractor,40198,Miscellaneous Expenses,5034,Ref 6614,12/08/2022,0169003,68.00,Revenue,Mobility Care Services,70841,,
Chorley Borough Council,http://statistics.data.gov.uk/id/local-authority/30UE,Private Sector HSG Renewal,1073,EARL - Communities,External Contractor,40198,Miscellaneous Expenses,5034,Ref 6615,12/08/2022,0169003,34.00,Revenue,Mobility Care Services,70841,,
Chorley Borough Council,http://statistics.data.gov.uk/id/local-authority/30UE,Private Sector HSG Renewal,1073,EARL - Communities,External Contractor,40198,Miscellaneous Expenses,5034,Ref 6488,12/08/2022,0169003,85.00,Revenue,Mobility Care Services,70841,,
Chorley Borough Council,http://statistics.data.gov.uk/id/local-authority/30UE,Private Sector HSG Renewal,1073,EARL - Communities,External Contractor,40198,Miscellaneous Expenses,5034,Ref 6489,12/08/2022,0169003,68.00,Revenue,Mobility Care Services,70841,,
Chorley Borough Council,http://statistics.data.gov.uk/id/local-authority/30UE,Private Sector HSG Renewal,1073,EARL - Communities,External Contractor,40198,Miscellaneous Expenses,5034,Ref 6490,12/08/2022,0169003,85.00,Revenue,Mobility Care Services,70841,,
Chorley Borough Council,http://statistics.data.gov.uk/id/local-authority/30UE,Private Sector HSG Renewal,1073,EARL - Communities,External Contractor,40198,Miscellaneous Expenses,5034,Ref 6491,12/08/2022,0169003,120.00,Revenue,Mobility Care Services,70841,,
Chorley Borough Council,http://statistics.data.gov.uk/id/local-authority/30UE,Private Sector HSG Renewal,1073,EARL - Communities,External Contractor,40198,Miscellaneous Expenses,5034,Ref 6493,12/08/2022,0169003,85.00,Revenue,Mobility Care Services,70841,,
Chorley Borough Council,http://statistics.data.gov.uk/id/local-authority/30UE,Private Sector HSG Renewal,1073,EARL - Communities,External Contractor,40198,Miscellaneous Expenses,5034,Ref 6596,12/08/2022,0169003,860.00,Revenue,Mobility Care Services,70841,,
Chorley Borough Council,http://statistics.data.gov.uk/id/local-authority/30UE,Private Sector HSG Renewal,1073,EARL - Communities,External Contractor,40198,Miscellaneous Expenses,5034,Ref 6529,12/08/2022,0169003,34.00,Revenue,Mobility Care Services,70841,,
Chorley Borough Council,http://statistics.data.gov.uk/id/local-authority/30UE,Private Sector HSG Renewal,1073,EARL - Communities,External Contractor,40198,Miscellaneous Expenses,5034,Ref 6530,12/08/2022,0169003,132.00,Revenue,Mobility Care Services,70841,,
Chorley Borough Council,http://statistics.data.gov.uk/id/local-authority/30UE,Private Sector HSG Renewal,1073,EARL - Communities,External Contractor,40198,Miscellaneous Expenses,5034,Ref 6531,12/08/2022,0169003,264.00,Revenue,Mobility Care Services,70841,,
Chorley Borough Council,http://statistics.data.gov.uk/id/local-authority/30UE,Private Sector HSG Renewal,1073,EARL - Communities,External Contractor,40198,Miscellaneous Expenses,5034,Ref 6532,12/08/2022,0169003,780.00,Revenue,Mobility Care Services,70841,,
Chorley Borough Council,http://statistics.data.gov.uk/id/local-authority/30UE,Private Sector HSG Renewal,1073,EARL - Communities,External Contractor,40198,Miscellaneous Expenses,5034,Ref 6533,12/08/2022,0169003,264.00,Revenue,Mobility Care Services,70841,,
Chorley Borough Council,http://statistics.data.gov.uk/id/local-authority/30UE,Private Sector HSG Renewal,1073,EARL - Communities,External Contractor,40198,Miscellaneous Expenses,5034,Ref 6534,12/08/2022,0169003,264.00,Revenue,Mobility Care Services,70841,,
Chorley Borough Council,http://statistics.data.gov.uk/id/local-authority/30UE,Private Sector HSG Renewal,1073,EARL - Communities,External Contractor,40198,Miscellaneous Expenses,5034,Ref 6597,12/08/2022,0169003,102.00,Revenue,Mobility Care Services,70841,,
Chorley Borough Council,http://statistics.data.gov.uk/id/local-authority/30UE,Private Sector HSG Renewal,1073,EARL - Communities,External Contractor,40198,Miscellaneous Expenses,5034,Ref 6600,12/08/2022,0169003,68.00,Revenue,Mobility Care Services,70841,,
Chorley Borough Council,http://statistics.data.gov.uk/id/local-authority/30UE,Private Sector HSG Renewal,1073,EARL - Communities,External Contractor,40198,Miscellaneous Expenses,5034,Ref 6601,12/08/2022,0169003,68.00,Revenue,Mobility Care Services,70841,,
Chorley Borough Council,http://statistics.data.gov.uk/id/local-authority/30UE,Private Sector HSG Renewal,1073,EARL - Communities,External Contractor,40198,Miscellaneous Expenses,5034,Ref 6616,12/08/2022,0169003,68.00,Revenue,Mobility Care Services,70841,,
Chorley Borough Council,http://statistics.data.gov.uk/id/local-authority/30UE,Private Sector HSG Renewal,1073,EARL - Communities,External Contractor,40198,Miscellaneous Expenses,5034,Ref 6715,05/08/2022,0169650,114.50,Revenue,Mobility Care Services,70841,,
Chorley Borough Council,http://statistics.data.gov.uk/id/local-authority/30UE,Private Sector HSG Renewal,1073,EARL - Communities,External Contractor,40198,Miscellaneous Expenses,5034,Ref 6716,05/08/2022,0169650,114.50,Revenue,Mobility Care Services,70841,,
Chorley Borough Council,http://statistics.data.gov.uk/id/local-authority/30UE,Private Sector HSG Renewal,1073,EARL - Communities,External Contractor,40198,Miscellaneous Expenses,5034,Ref 6724,05/08/2022,0169650,85.00,Revenue,Mobility Care Services,70841,,
Chorley Borough Council,http://statistics.data.gov.uk/id/local-authority/30UE,Private Sector HSG Renewal,1073,EARL - Communities,External Contractor,40198,Miscellaneous Expenses,5034,Ref 6725,05/08/2022,0169650,34.00,Revenue,Mobility Care Services,70841,,
Chorley Borough Council,http://statistics.data.gov.uk/id/local-authority/30UE,Private Sector HSG Renewal,1073,EARL - Communities,External Contractor,40198,Miscellaneous Expenses,5034,Ref 6726,05/08/2022,0169650,68.00,Revenue,Mobility Care Services,70841,,
Chorley Borough Council,http://statistics.data.gov.uk/id/local-authority/30UE,Private Sector HSG Renewal,1073,EARL - Communities,External Contractor,40198,Miscellaneous Expenses,5034,Ref 6727,05/08/2022,0169650,68.00,Revenue,Mobility Care Services,70841,,
Chorley Borough Council,http://statistics.data.gov.uk/id/local-authority/30UE,Private Sector HSG Renewal,1073,EARL - Communities,External Contractor,40198,Miscellaneous Expenses,5034,Ref 6728,05/08/2022,0169650,68.00,Revenue,Mobility Care Services,70841,,
Chorley Borough Council,http://statistics.data.gov.uk/id/local-authority/30UE,Private Sector HSG Renewal,1073,EARL - Communities,External Contractor,40198,Miscellaneous Expenses,5034,Ref 6739,05/08/2022,0169650,132.00,Revenue,Mobility Care Services,70841,,
Chorley Borough Council,http://statistics.data.gov.uk/id/local-authority/30UE,Private Sector HSG Renewal,1073,EARL - Communities,External Contractor,40198,Miscellaneous Expenses,5034,Ref 6748,05/08/2022,0169650,85.00,Revenue,Mobility Care Services,70841,,
Chorley Borough Council,http://statistics.data.gov.uk/id/local-authority/30UE,Private Sector HSG Renewal,1073,EARL - Communities,External Contractor,40198,Miscellaneous Expenses,5034,Ref 6750,05/08/2022,0169650,114.50,Revenue,Mobility Care Services,70841,,
Chorley Borough Council,http://statistics.data.gov.uk/id/local-authority/30UE,Private Sector HSG Renewal,1073,EARL - Communities,External Contractor,40198,Miscellaneous Expenses,5034,Ref 6751,05/08/2022,0169650,132.00,Revenue,Mobility Care Services,70841,,
Chorley Borough Council,http://statistics.data.gov.uk/id/local-authority/30UE,Private Sector HSG Renewal,1073,EARL - Communities,External Contractor,40198,Miscellaneous Expenses,5034,Ref 6622,05/08/2022,0169650,132.00,Revenue,Mobility Care Services,70841,,
Chorley Borough Council,http://statistics.data.gov.uk/id/local-authority/30UE,Private Sector HSG Renewal,1073,EARL - Communities,External Contractor,40198,Miscellaneous Expenses,5034,Ref 6674,05/08/2022,0169650,68.00,Revenue,Mobility Care Services,70841,,
Chorley Borough Council,http://statistics.data.gov.uk/id/local-authority/30UE,Private Sector HSG Renewal,1073,EARL - Communities,External Contractor,40198,Miscellaneous Expenses,5034,Ref 6675,05/08/2022,0169650,460.00,Revenue,Mobility Care Services,70841,,
Chorley Borough Council,http://statistics.data.gov.uk/id/local-authority/30UE,Private Sector HSG Renewal,1073,EARL - Communities,External Contractor,40198,Miscellaneous Expenses,5034,Ref 6676,05/08/2022,0169650,132.00,Revenue,Mobility Care Services,70841,,
Chorley Borough Council,http://statistics.data.gov.uk/id/local-authority/30UE,Private Sector HSG Renewal,1073,EARL - Communities,External Contractor,40198,Miscellaneous Expenses,5034,Ref 6677,05/08/2022,0169650,132.00,Revenue,Mobility Care Services,70841,,
Chorley Borough Council,http://statistics.data.gov.uk/id/local-authority/30UE,Private Sector HSG Renewal,1073,EARL - Communities,External Contractor,40198,Miscellaneous Expenses,5034,Ref 6687,05/08/2022,0169650,140.00,Revenue,Mobility Care Services,70841,,
Chorley Borough Council,http://statistics.data.gov.uk/id/local-authority/30UE,Private Sector HSG Renewal,1073,EARL - Communities,External Contractor,40198,Miscellaneous Expenses,5034,Ref 6688,05/08/2022,0169650,51.00,Revenue,Mobility Care Services,70841,,
Chorley Borough Council,http://statistics.data.gov.uk/id/local-authority/30UE,Private Sector HSG Renewal,1073,EARL - Communities,External Contractor,40198,Miscellaneous Expenses,5034,Ref 6714,05/08/2022,0169650,114.50,Revenue,Mobility Care Services,70841,,
Chorley Borough Council,http://statistics.data.gov.uk/id/local-authority/30UE,Capital,Capital,EARL - Communities,Grants,03002,Capital Expenditure,Capital,,26/08/2022,0170080,460.00,Capital,Mobility Care Services,70841,,
Chorley Borough Council,http://statistics.data.gov.uk/id/local-authority/30UE,Capital,Capital,EARL - Communities,Grants,03002,Capital Expenditure,Capital,22/00020/CAG,26/08/2022,0170082,"3,280.00",Capital,Mobility Care Services,70841,,
Chorley Borough Council,http://statistics.data.gov.uk/id/local-authority/30UE,Capital,Capital,GROW - Commercial & Property,Other Contractor,03012,Capital Expenditure,Capital,Additional works to Chorley Markets improvements: Bum rails/protection,19/08/2022,0166865,"4,600.00",Capital,Morgan Brothers Metalwork Solutions,76663,,
Chorley Borough Council,http://statistics.data.gov.uk/id/local-authority/30UE,Capital,Capital,GROW - Commercial & Property,Other Contractor,03012,Capital Expenditure,Capital,Roof projection boxes,19/08/2022,0166865,"1,280.00",Capital,Morgan Brothers Metalwork Solutions,76663,,
Chorley Borough Council,http://statistics.data.gov.uk/id/local-authority/30UE,Control Accounts,Control,GROW - Commercial & Property,Manual Control Account,00001,Balance Sheet,Balance,,19/08/2022,0170140,258.00,Revenue,Mr David B Barrett,85567,,
Chorley Borough Council,http://statistics.data.gov.uk/id/local-authority/30UE,Homelessness,1075,EARL - Communities,Rental Bond Scheme,40241,Miscellaneous Expenses,5034,Rental Bond Scheme,26/08/2022,0170200,575.00,Revenue,Mr Stephen Clayton,85590,,
Chorley Borough Council,http://statistics.data.gov.uk/id/local-authority/30UE,Central Support Services,1009,GROW - Commercial & Property,Legal Fees,40171,Miscellaneous Expenses,5034,"Professional solicitors fees for the Strawberry Meadows Business Park precedent leases, heads of terms etc.",05/08/2022,0169727,"4,000.00",Revenue,Napthens Solicitors,20427,,
Chorley Borough Council,http://statistics.data.gov.uk/id/local-authority/30UE,Central Support Services,1009,GROW - Commercial & Property,Legal Fees,40171,Miscellaneous Expenses,5034,Disbursements,05/08/2022,0169727,12.00,Revenue,Napthens Solicitors,20427,,
Chorley Borough Council,http://statistics.data.gov.uk/id/local-authority/30UE,Development Control,1091,GOVN - Policy & Governance,Statutory Notices,40160,Miscellaneous Expenses,5034,Public notice in the Chorley Guardian of the confirmation of Part of Footpath ADDRESSES REDACTED,05/08/2022,0167753,371.58,Revenue,National World Publishing Limited,20072,,
Chorley Borough Council,http://statistics.data.gov.uk/id/local-authority/30UE,Business Support,1095,GROW - Commercial & Property,Security Service,40062,Services,5027,To provide evening Site Security Services at Market Walk Shopping Centre from 5pm until midnight 7  days a week,12/08/2022,0169557,661.28,Revenue,New Concept Security NW Ltd T/A New Concept Goup,80488,,
Chorley Borough Council,http://statistics.data.gov.uk/id/local-authority/30UE,Business Support,1095,GROW - Commercial & Property,Security Service,40062,Services,5027,To provide evening Site Security Services at Market Walk Shopping Centre from 5pm until midnight 7  days a week,12/08/2022,0169721,661.50,Revenue,New Concept Security NW Ltd T/A New Concept Goup,80488,,
Chorley Borough Council,http://statistics.data.gov.uk/id/local-authority/30UE,Business Support,1095,GROW - Commercial & Property,Security Service,40062,Services,5027,To provide evening Site Security Services at Market Walk Shopping Centre from 5pm until midnight 7  days a week,12/08/2022,0169957,661.50,Revenue,New Concept Security NW Ltd T/A New Concept Goup,80488,,
Chorley Borough Council,http://statistics.data.gov.uk/id/local-authority/30UE,Tourism,1039,GOVN - Policy & Governance,External Contractor,40198,Miscellaneous Expenses,5034,Security provision,19/08/2022,0170026,"7,936.50",Revenue,New Concept Security NW Ltd T/A New Concept Goup,80488,,
Chorley Borough Council,http://statistics.data.gov.uk/id/local-authority/30UE,Business Support,1095,GROW - Commercial & Property,Security Service,40062,Services,5027,To provide evening Site Security Services at Market Walk Shopping Centre from 5pm until midnight 7 days a week. ,26/08/2022,0170153,661.50,Revenue,New Concept Security NW Ltd T/A New Concept Goup,80488,,
Chorley Borough Council,http://statistics.data.gov.uk/id/local-authority/30UE,Planning Policy,1092,PLAN - Planning & Development,General Subscriptions,40146,Grants and Subscriptions,5031,Full membership to the Northern Housing Consortium for the period 01/04/22 to 31/03/23,05/08/2022,0169710,990.00,Revenue,Northern Housing Consortium Ltd,17220,,
Chorley Borough Council,http://statistics.data.gov.uk/id/local-authority/30UE,Central Support Services,1009,EARL - Communities,Misc Expenses,40200,Miscellaneous Expenses,5034,"Installation of public access defibrillator and cabinet at Buckshaw Parkway Railway Station, Chorley.  ",12/08/2022,0169263,"2,000.00",Revenue,Northern Trains Limited,20299,,
Chorley Borough Council,http://statistics.data.gov.uk/id/local-authority/30UE,Central Support Services,1009,CUST - Customer & Digital,Hire Of Vehicles and Plant,30028,Contrct Hire & Operating Lease,5018,Vehicle hire 3.5ton Luton Van with tail-lift,12/08/2022,0168419,683.20,Revenue,Northgate Vehicle Hire (NW) Ltd,17360,,
Chorley Borough Council,http://statistics.data.gov.uk/id/local-authority/30UE,Central Support Services,1009,CUST - Customer & Digital,Hire Of Vehicles and Plant,30028,Contrct Hire & Operating Lease,5018,Vehicle hire 3.5ton Luton Van with tail-lift,12/08/2022,0169094,683.20,Revenue,Northgate Vehicle Hire (NW) Ltd,17360,,
Chorley Borough Council,http://statistics.data.gov.uk/id/local-authority/30UE,Central Support Services,1009,CUST - Customer & Digital,Hire Of Vehicles and Plant,30028,Contrct Hire & Operating Lease,5018,Vehicle hire 3.5ton Luton Van with tail-lift,12/08/2022,0169842,683.20,Revenue,Northgate Vehicle Hire (NW) Ltd,17360,,
Chorley Borough Council,http://statistics.data.gov.uk/id/local-authority/30UE,Tourism,1039,GOVN - Policy & Governance,Misc Expenses,40200,Miscellaneous Expenses,5034,11 x Standard WC`s 1 x Disabled access with baby change Delivery Thursday 21 July 2022 to Astley Park,12/08/2022,0169558,"1,305.00",Revenue,Northwest Portables,74432,,
Chorley Borough Council,http://statistics.data.gov.uk/id/local-authority/30UE,Tourism,1039,GOVN - Policy & Governance,Misc Expenses,40200,Miscellaneous Expenses,5034,Chorley Flower Show 2022 6 x Standard WC`s Servicing total 180 ,12/08/2022,0169756,600.00,Revenue,Northwest Portables,74432,,
Chorley Borough Council,http://statistics.data.gov.uk/id/local-authority/30UE,Tourism,1039,GOVN - Policy & Governance,Misc Expenses,40200,Miscellaneous Expenses,5034,7x Standalone Hand Washing Stations Chorley Flower Show 2022 - Delivery Wednesday 27 July to various locations ,12/08/2022,0169759,350.00,Revenue,Northwest Portables,74432,,
Chorley Borough Council,http://statistics.data.gov.uk/id/local-authority/30UE,Tourism,1039,GOVN - Policy & Governance,Misc Expenses,40200,Miscellaneous Expenses,5034,Chorley Flower Show 2022 - Delivery Wednesday 27 July to various places across the show site (Astley Park). ,12/08/2022,0169760,"4,170.00",Revenue,Northwest Portables,74432,,
Chorley Borough Council,http://statistics.data.gov.uk/id/local-authority/30UE,Parking Services,1066,GROW - Commercial & Property,Electricity,20013,Energy Costs,5006,1/5/22 to 31/5/22,26/08/2022,0168680,531.36,Revenue,Npower Commercial Gas,16814,,
Chorley Borough Council,http://statistics.data.gov.uk/id/local-authority/30UE,Central Support Services,1009,GROW - Commercial & Property,Electricity,20013,Energy Costs,5006,1/7 to 31/7/22,19/08/2022,0170088,667.25,Revenue,Npower Commercial Gas,16814,,
Chorley Borough Council,http://statistics.data.gov.uk/id/local-authority/30UE,Central Support Services,1009,GROW - Commercial & Property,Electricity,20013,Energy Costs,5006,1/7 to 31/7/22,19/08/2022,0170089,"7,050.53",Revenue,Npower Commercial Gas,16814,,
Chorley Borough Council,http://statistics.data.gov.uk/id/local-authority/30UE,Business Support,1095,GROW - Commercial & Property,Electricity,20013,Energy Costs,5006,1/7 to 31/7/22,19/08/2022,0170090,"2,616.24",Revenue,Npower Commercial Gas,16814,,
Chorley Borough Council,http://statistics.data.gov.uk/id/local-authority/30UE,Business Support,1095,GROW - Commercial & Property,Electricity,20013,Energy Costs,5006,1/7 to 31/7/22,19/08/2022,0170091,"8,063.85",Revenue,Npower Commercial Gas,16814,,
Chorley Borough Council,http://statistics.data.gov.uk/id/local-authority/30UE,Unapportionable Central OHeads,1009,GROW - Commercial & Property,Electricity,20013,Energy Costs,5006,1/7 to 31/7/22,19/08/2022,0170092,"4,509.65",Revenue,Npower Commercial Gas,16814,,
Chorley Borough Council,http://statistics.data.gov.uk/id/local-authority/30UE,Democratic Represent and  Mgnt,1007,GROW - Commercial & Property,Electricity,20013,Energy Costs,5006,1/7 to 31/7/22,19/08/2022,0170093,"14,066.30",Revenue,Npower Commercial Gas,16814,,
Chorley Borough Council,http://statistics.data.gov.uk/id/local-authority/30UE,Recreation & Sport,1037,GROW - Commercial & Property,Electricity,20013,Energy Costs,5006,1/7 to 31/7/22,19/08/2022,0170098,"2,219.09",Revenue,Npower Commercial Gas,16814,,
Chorley Borough Council,http://statistics.data.gov.uk/id/local-authority/30UE,Recreation & Sport,1037,GROW - Commercial & Property,Electricity,20013,Energy Costs,5006,1/7 to 31/7/22,19/08/2022,0170099,"2,606.70",Revenue,Npower Commercial Gas,16814,,
Chorley Borough Council,http://statistics.data.gov.uk/id/local-authority/30UE,Recreation & Sport,1037,GROW - Commercial & Property,Electricity,20013,Energy Costs,5006,1/7 to 31/7/22,26/08/2022,0170219,1.02,Revenue,Npower Commercial Gas,16814,,
Chorley Borough Council,http://statistics.data.gov.uk/id/local-authority/30UE,Recreation & Sport,1037,GROW - Commercial & Property,Electricity,20013,Energy Costs,5006,1/7 to 31/7/22,26/08/2022,0170219,278.70,Revenue,Npower Commercial Gas,16814,,
Chorley Borough Council,http://statistics.data.gov.uk/id/local-authority/30UE,Unapportionable Central OHeads,1009,GROW - Commercial & Property,Electricity,20013,Energy Costs,5006,1/7 to 31/7/22,26/08/2022,0170221,"1,617.61",Revenue,Npower Commercial Gas,16814,,
Chorley Borough Council,http://statistics.data.gov.uk/id/local-authority/30UE,Homelessness,1075,GROW - Commercial & Property,Electricity,20013,Energy Costs,5006,1/7 to 31/7/22,26/08/2022,0170223,587.37,Revenue,Npower Commercial Gas,16814,,
Chorley Borough Council,http://statistics.data.gov.uk/id/local-authority/30UE,Homelessness,1075,GROW - Commercial & Property,Electricity,20013,Energy Costs,5006,1/7 to 31/7/22,26/08/2022,0170224,"1,014.84",Revenue,Npower Commercial Gas,16814,,
Chorley Borough Council,http://statistics.data.gov.uk/id/local-authority/30UE,Parking Services,1066,GROW - Commercial & Property,Electricity,20013,Energy Costs,5006,1/7 to 31/7/22,26/08/2022,0170225,534.10,Revenue,Npower Commercial Gas,16814,,
Chorley Borough Council,http://statistics.data.gov.uk/id/local-authority/30UE,Business Support,1095,GROW - Commercial & Property,Electricity,20013,Energy Costs,5006,1/7 to 31/7/22,26/08/2022,0170226,"1,122.99",Revenue,Npower Commercial Gas,16814,,
Chorley Borough Council,http://statistics.data.gov.uk/id/local-authority/30UE,Parking Services,1066,GROW - Commercial & Property,Electricity,20013,Energy Costs,5006,1/7 to 31/7/22,26/08/2022,0170232,694.68,Revenue,Npower Commercial Gas,16814,,
Chorley Borough Council,http://statistics.data.gov.uk/id/local-authority/30UE,Democratic Represent and  Mgnt,1007,GROW - Commercial & Property,Electricity,20013,Energy Costs,5006,1/7 to 31/7/22,26/08/2022,0170233,"2,463.50",Revenue,Npower Commercial Gas,16814,,
Chorley Borough Council,http://statistics.data.gov.uk/id/local-authority/30UE,Parking Services,1066,GROW - Commercial & Property,Electricity,20013,Energy Costs,5006,1/7 to 31/7/22,26/08/2022,0170235,"2,511.00",Revenue,Npower Commercial Gas,16814,,
Chorley Borough Council,http://statistics.data.gov.uk/id/local-authority/30UE,Homelessness,1075,GROW - Commercial & Property,Electricity,20013,Energy Costs,5006,1/7 to 31/7/22,26/08/2022,0170236,256.78,Revenue,Npower Commercial Gas,16814,,
Chorley Borough Council,http://statistics.data.gov.uk/id/local-authority/30UE,Democratic Represent and  Mgnt,1007,GROW - Commercial & Property,Electricity,20013,Energy Costs,5006,1/7 to 31/7/22,26/08/2022,0170237,281.97,Revenue,Npower Commercial Gas,16814,,
Chorley Borough Council,http://statistics.data.gov.uk/id/local-authority/30UE,Democratic Represent and  Mgnt,1007,GROW - Commercial & Property,Electricity,20013,Energy Costs,5006,1/7 to 31/7/22,26/08/2022,0170247,276.92,Revenue,Npower Commercial Gas,16814,,
Chorley Borough Council,http://statistics.data.gov.uk/id/local-authority/30UE,Democratic Represent and  Mgnt,1007,GROW - Commercial & Property,Electricity,20013,Energy Costs,5006,1/7 to 31/7/22,26/08/2022,0170248,533.03,Revenue,Npower Commercial Gas,16814,,
Chorley Borough Council,http://statistics.data.gov.uk/id/local-authority/30UE,Democratic Represent and  Mgnt,1007,GROW - Commercial & Property,Electricity,20013,Energy Costs,5006,1/7 to 31/7/22,26/08/2022,0170259,544.83,Revenue,Npower Commercial Gas,16814,,
Chorley Borough Council,http://statistics.data.gov.uk/id/local-authority/30UE,Parking Services,1066,GROW - Commercial & Property,External Contractors,50008,Private Contractors,5042,Provision of Off Street Car Park Cash Collection & Enforcement � final year of contract 01.11.21 to 31.10.22,19/08/2022,0169836,"5,115.72",Revenue,NSL Limited,67253,,
Chorley Borough Council,http://statistics.data.gov.uk/id/local-authority/30UE,Service Management & Support,1009,CUST - Customer & Digital,Supplies-Grounds Maintenance,40025,"Equipment, Furniture & Materia",5023,Sand and paint benches in Chorley & Adlington cemeteries,19/08/2022,0169286,440.00,Revenue,Nuchoice Limited,75454,,
Chorley Borough Council,http://statistics.data.gov.uk/id/local-authority/30UE,Service Management & Support,1009,CUST - Customer & Digital,Supplies-Grounds Maintenance,40025,"Equipment, Furniture & Materia",5023,Paint various sites in Astley Park ready for the Flower Show,12/08/2022,0169809,580.00,Revenue,Nuchoice Limited,75454,,
Chorley Borough Council,http://statistics.data.gov.uk/id/local-authority/30UE,Homelessness,1075,EARL - Communities,Grants to Voluntary Organisations,40124,Grants and Subscriptions,5031,Performance by One Voice Community Choir at Ukraine Welcome Event,12/08/2022,0169718,250.00,Revenue,One Voice Community Choir,22192,,
Chorley Borough Council,http://statistics.data.gov.uk/id/local-authority/30UE,Tourism,1039,GOVN - Policy & Governance,Misc Expenses,40200,Miscellaneous Expenses,5034,NAME REDACTED Oak Swill Basket Making Demonstrations - 3 day at Chorley Flower Show 2022,12/08/2022,0169808,585.00,Revenue,Owen Jones,76956,,
Chorley Borough Council,http://statistics.data.gov.uk/id/local-authority/30UE,Planning Policy,1092,PLAN - Planning & Development,Operational Employees Salaries,10000,Direct Employee Expenses,5001,Supply of agency staff to work on the Central Lancashire Local Plan,12/08/2022,0169771,"1,299.50",Revenue,Park Avenue Recruitment Ltd,82305,,
Chorley Borough Council,http://statistics.data.gov.uk/id/local-authority/30UE,Economic Development,1096,GROW - Commercial & Property,Cleaning Materials,40019,"Equipment, Furniture & Materia",5023,Please supply janitorial products as per email,19/08/2022,0169293,273.37,Revenue,Pattersons Holdings (Bristol),77537,,
Chorley Borough Council,http://statistics.data.gov.uk/id/local-authority/30UE,Economic Development,1096,GROW - Commercial & Property,Cleaning Materials,40019,"Equipment, Furniture & Materia",5023,Please supply cleaning materials as per email,19/08/2022,0169667,422.55,Revenue,Pattersons Holdings (Bristol),77537,,
Chorley Borough Council,http://statistics.data.gov.uk/id/local-authority/30UE,Business Support,1095,GROW - Commercial & Property,Cleaning Materials,40019,"Equipment, Furniture & Materia",5023,AA301- X1 -JUMBO ROLLS,19/08/2022,0169939,65.19,Revenue,Pattersons Holdings (Bristol),77537,,
Chorley Borough Council,http://statistics.data.gov.uk/id/local-authority/30UE,Business Support,1095,GROW - Commercial & Property,Cleaning Materials,40019,"Equipment, Furniture & Materia",5023,AE214-X9-HAND TOWELS,19/08/2022,0169939,160.20,Revenue,Pattersons Holdings (Bristol),77537,,
Chorley Borough Council,http://statistics.data.gov.uk/id/local-authority/30UE,Business Support,1095,GROW - Commercial & Property,Cleaning Materials,40019,"Equipment, Furniture & Materia",5023,BB028-1- X3-WASHING UP LIQUID,19/08/2022,0169939,3.66,Revenue,Pattersons Holdings (Bristol),77537,,
Chorley Borough Council,http://statistics.data.gov.uk/id/local-authority/30UE,Business Support,1095,GROW - Commercial & Property,Cleaning Materials,40019,"Equipment, Furniture & Materia",5023,PX-00012-X3-DISHWASHER CLEANER,19/08/2022,0169939,10.29,Revenue,Pattersons Holdings (Bristol),77537,,
Chorley Borough Council,http://statistics.data.gov.uk/id/local-authority/30UE,Business Support,1095,GROW - Commercial & Property,Cleaning Materials,40019,"Equipment, Furniture & Materia",5023,BC041-1-X3 TOILET CLEANER,19/08/2022,0169939,2.70,Revenue,Pattersons Holdings (Bristol),77537,,
Chorley Borough Council,http://statistics.data.gov.uk/id/local-authority/30UE,Business Support,1095,GROW - Commercial & Property,Cleaning Materials,40019,"Equipment, Furniture & Materia",5023,BC060-1-X3-LIMESCALE REMOVER,19/08/2022,0169939,4.59,Revenue,Pattersons Holdings (Bristol),77537,,
Chorley Borough Council,http://statistics.data.gov.uk/id/local-authority/30UE,Business Support,1095,GROW - Commercial & Property,Cleaning Materials,40019,"Equipment, Furniture & Materia",5023,BG045-X2-POLISH,19/08/2022,0169939,2.02,Revenue,Pattersons Holdings (Bristol),77537,,
Chorley Borough Council,http://statistics.data.gov.uk/id/local-authority/30UE,Business Support,1095,GROW - Commercial & Property,Cleaning Materials,40019,"Equipment, Furniture & Materia",5023,BK081-X1-HAND WASH,19/08/2022,0169939,31.43,Revenue,Pattersons Holdings (Bristol),77537,,
Chorley Borough Council,http://statistics.data.gov.uk/id/local-authority/30UE,Business Support,1095,GROW - Commercial & Property,Cleaning Materials,40019,"Equipment, Furniture & Materia",5023,CG106-G1-X10- GREEN CLTH,19/08/2022,0169939,3.90,Revenue,Pattersons Holdings (Bristol),77537,,
Chorley Borough Council,http://statistics.data.gov.uk/id/local-authority/30UE,Business Support,1095,GROW - Commercial & Property,Cleaning Materials,40019,"Equipment, Furniture & Materia",5023,CG106-Y1- X10 - YELLOW CLOTHS,19/08/2022,0169939,3.90,Revenue,Pattersons Holdings (Bristol),77537,,
Chorley Borough Council,http://statistics.data.gov.uk/id/local-authority/30UE,Business Support,1095,GROW - Commercial & Property,Cleaning Materials,40019,"Equipment, Furniture & Materia",5023,CM180- X1- BIN BAGS,19/08/2022,0169939,12.57,Revenue,Pattersons Holdings (Bristol),77537,,
Chorley Borough Council,http://statistics.data.gov.uk/id/local-authority/30UE,Business Support,1095,GROW - Commercial & Property,Cleaning Materials,40019,"Equipment, Furniture & Materia",5023,DG150-L- X1- GLOVES,19/08/2022,0169939,9.25,Revenue,Pattersons Holdings (Bristol),77537,,
Chorley Borough Council,http://statistics.data.gov.uk/id/local-authority/30UE,Tourism,1039,GOVN - Policy & Governance,Tools & Equipment - Hire,40004,"Equipment, Furniture & Materia",5023,Supply and install equipment and staging,12/08/2022,0169788,"5,690.00",Revenue,Paul K Sound & Vision,16607,,
Chorley Borough Council,http://statistics.data.gov.uk/id/local-authority/30UE,Homelessness,1075,EARL - Communities,Service Fees,40056,Services,5027,"Storage Costs for NAME REDACTED, as per Invoice PR53004 dated 13/07/2022",12/08/2022,0169764,33.33,Revenue,Pay Store Limited T/A Store First,85507,,
Chorley Borough Council,http://statistics.data.gov.uk/id/local-authority/30UE,Homelessness,1075,EARL - Communities,Service Fees,40056,Services,5027,"Storage Costs for NAME REDACTED, as per Invoice PR53004 dated 13/07/2022",12/08/2022,0169764,240.00,Revenue,Pay Store Limited T/A Store First,85507,,
Chorley Borough Council,http://statistics.data.gov.uk/id/local-authority/30UE,Unapportionable Central OHeads,1009,GROW - Commercial & Property,General Repairs - Reactive,20004,Repairs Maintenance & Alts,5005,Vehicle damage - Westway fencingRemove from site 1 no. damaged post andpanel. Replace with new 1.8mt highGalvanised,05/08/2022,0169510,725.96,Revenue,Peerless Fencing Limited,78148,,
Chorley Borough Council,http://statistics.data.gov.uk/id/local-authority/30UE,Unapportionable Central OHeads,1009,GROW - Commercial & Property,General Repairs - Reactive,20004,Repairs Maintenance & Alts,5005,"Westway fencing repairs To refix loose top panel back into position,all to suit our quotation ref. PF/Q/47096/GN.",05/08/2022,0169726,751.30,Revenue,Peerless Fencing Limited,78148,,
Chorley Borough Council,http://statistics.data.gov.uk/id/local-authority/30UE,Central Support Services,1009,CUST - Customer & Digital,Printing,40043,"Printing, Stationery & General",5026,Garden waste subscription permits 2022/23 for Chorley and South Ribble,12/08/2022,0169954,515.12,Revenue,Permiserv Ltd,77202,,
Chorley Borough Council,http://statistics.data.gov.uk/id/local-authority/30UE,Unapportionable Central OHeads,1009,GOVN - Policy & Governance,HR Recruitment Expenses,15200,Indirect Employee Expenses,5002,Invoice 345952 - DBS checks,05/08/2022,0169357,139.13,Revenue,Personnel Checks Ltd,81534,,
Chorley Borough Council,http://statistics.data.gov.uk/id/local-authority/30UE,Unapportionable Central OHeads,1009,GOVN - Policy & Governance,HR Recruitment Expenses,15200,Indirect Employee Expenses,5002,Invoice 345952 - DBS checks,05/08/2022,0169357,226.00,Revenue,Personnel Checks Ltd,81534,,
Chorley Borough Council,http://statistics.data.gov.uk/id/local-authority/30UE,Central Support Services,1009,CUST - Customer & Digital,IT Software - Annual Licences,40101,Communication and Computing,5028,Microsoft Licences 3 years,26/08/2022,0168140,"171,911.37",Revenue,Phoenix Software Ltd,17046,,
Chorley Borough Council,http://statistics.data.gov.uk/id/local-authority/30UE,Development Control,1091,PLAN - Planning & Development,Legal Fees,40171,Miscellaneous Expenses,5034,ADVOCACY AT 2 DAY PLANNING ENFORCEMENT APPEAL - ADDRESS REDACTED,12/08/2022,0169519,750.00,Revenue,Piers Riley-Smith,84151,,
Chorley Borough Council,http://statistics.data.gov.uk/id/local-authority/30UE,Development Control,1091,PLAN - Planning & Development,Legal Fees,40171,Miscellaneous Expenses,5034,PROFESSIONAL SERVICES IN RELATION TO ADVICE - LAND ADJACENT TO HMP GARTH AND HMP ,12/08/2022,0169772,"15,500.00",Revenue,Piers Riley-Smith,84151,,
Chorley Borough Council,http://statistics.data.gov.uk/id/local-authority/30UE,Service Management & Support,1009,CUST - Customer & Digital,Supplies-Grounds Maintenance,40025,"Equipment, Furniture & Materia",5023,Hydraulic ISO 46 205litre drum ,12/08/2022,0169821,420.25,Revenue,Pilkington Oils,18075,,
Chorley Borough Council,http://statistics.data.gov.uk/id/local-authority/30UE,Development Control,1091,PLAN - Planning & Development,Professional Fees,40063,Services,5027,Planning Enforcement Services April 2022 to March 2023,12/08/2022,0169336,"1,092.50",Revenue,Planning and PACE Solutions Ltd,82083,,
Chorley Borough Council,http://statistics.data.gov.uk/id/local-authority/30UE,Development Control,1091,PLAN - Planning & Development,Professional Fees,40063,Services,5027,Planning Enforcement Services April 2022 to March 2023,12/08/2022,0169342,"1,167.00",Revenue,Planning and PACE Solutions Ltd,82083,,
Chorley Borough Council,http://statistics.data.gov.uk/id/local-authority/30UE,Development Control,1091,PLAN - Planning & Development,Professional Fees,40063,Services,5027,Planning Enforcement Services April 2022 to March 2023,12/08/2022,0169709,855.00,Revenue,Planning and PACE Solutions Ltd,82083,,
Chorley Borough Council,http://statistics.data.gov.uk/id/local-authority/30UE,Development Control,1091,CUST - Customer & Digital,General Subscriptions,40146,Grants and Subscriptions,5031,Yearly membership for Chorley Council access to Planning Jungle website.,05/08/2022,0168396,300.00,Revenue,Planning Jungle Limited,59686,,
Chorley Borough Council,http://statistics.data.gov.uk/id/local-authority/30UE,Capital,Capital,GOVN - Policy & Governance,Other Contractor,03012,Capital Expenditure,Capital,Astley Hall additional graphics. Fabric Prints for Scullery,05/08/2022,0169632,961.00,Capital,PNG Digital LTD,80969,,
Chorley Borough Council,http://statistics.data.gov.uk/id/local-authority/30UE,Tourism,1039,GOVN - Policy & Governance,Publicity - Advertising,40157,Miscellaneous Expenses,5034,Chorley Flower Show Advertisement on M61 Junction  1 1 Unit(s) Full colour digital print with protective laminate. ,05/08/2022,0169254,"1,100.00",Revenue,Poppy Signs Ltd,21898,,
Chorley Borough Council,http://statistics.data.gov.uk/id/local-authority/30UE,Tourism,1039,GOVN - Policy & Governance,Safety Signs And Posters,40017,"Equipment, Furniture & Materia",5023,Assorted Flower Show Signage New print applied over the previous metal boards,05/08/2022,0169609,362.84,Revenue,Poppy Signs Ltd,21898,,
Chorley Borough Council,http://statistics.data.gov.uk/id/local-authority/30UE,Tourism,1039,GOVN - Policy & Governance,Safety Signs And Posters,40017,"Equipment, Furniture & Materia",5023,"Design, manufacture and supply only: UV laminated digitally printed and contour-cut. Delivery to Bengal Street Depot. ",12/08/2022,0169610,345.10,Revenue,Poppy Signs Ltd,21898,,
Chorley Borough Council,http://statistics.data.gov.uk/id/local-authority/30UE,Tourism,1039,GOVN - Policy & Governance,Misc Expenses,40200,Miscellaneous Expenses,5034,Batch of 17xA2 boards on 6mm correx Chorley Flower Show - Photography Competition,05/08/2022,0169671,271.22,Revenue,Poppy Signs Ltd,21898,,
Chorley Borough Council,http://statistics.data.gov.uk/id/local-authority/30UE,Tourism,1039,GOVN - Policy & Governance,Publicity - Advertising,40157,Miscellaneous Expenses,5034,4000 Chorley Flower Show Programmes,12/08/2022,0169777,"1,370.00",Revenue,Poppy Signs Ltd,21898,,
Chorley Borough Council,http://statistics.data.gov.uk/id/local-authority/30UE,Corporate Management,1008,GOVN - Policy & Governance,Corp Training - Management Development,17002,Indirect Employee Expenses,5002,April Training   Passport to People Management Programme  Performance Management training sessions ,12/08/2022,0167493,"2,850.00",Revenue,Potential Unearthed,22243,,
Chorley Borough Council,http://statistics.data.gov.uk/id/local-authority/30UE,Corporate Management,1008,GOVN - Policy & Governance,Corp Training Organisational Development,17006,Indirect Employee Expenses,5002,Training: Flair Programme 2022,12/08/2022,0169289,"2,940.00",Revenue,Potential Unearthed,22243,,
Chorley Borough Council,http://statistics.data.gov.uk/id/local-authority/30UE,Recreation & Sport,1037,GOVN - Policy & Governance,Performing Rights Society Fees,40148,Grants and Subscriptions,5031,,12/08/2022,0169986,543.00,Revenue,PPL PRS Ltd,77455,,
Chorley Borough Council,http://statistics.data.gov.uk/id/local-authority/30UE,Capital,Capital,EARL - Communities,Grants,03002,Capital Expenditure,Capital,Handyperson funding Q2 2022/23 payable from DFG,12/08/2022,0169961,"6,250.00",Capital,Preston Care and Repair,50018,,
Chorley Borough Council,http://statistics.data.gov.uk/id/local-authority/30UE,Elections,1012,GOVN - Policy & Governance,Printing,40043,"Printing, Stationery & General",5026,Annual Canvass 2022 - (as per quote 9598),12/08/2022,0169941,"7,484.29",Revenue,Print Image Network,21171,,
Chorley Borough Council,http://statistics.data.gov.uk/id/local-authority/30UE,Elections,1012,GOVN - Policy & Governance,Printing,40043,"Printing, Stationery & General",5026,Annual Canvass 2022 - (as per quote 9598),26/08/2022,0170174,"2,393.48",Revenue,Print Image Network,21171,,
Chorley Borough Council,http://statistics.data.gov.uk/id/local-authority/30UE,Other Short Term Creditors,,GOVN - Policy & Governance,General Balances,00100,Balance Sheet,Balance,,19/08/2022,0170079,"3,604.00",Revenue,PRUDENTIAL,18178,,
Chorley Borough Council,http://statistics.data.gov.uk/id/local-authority/30UE,Homelessness,1075,EARL - Communities,Bed and Breakfast Accommodation,40232,Miscellaneous Expenses,5034,NAME REDACTED - Double En-Suite hotel room from 29/06/2022 - 14/07/2022 (15 nights),12/08/2022,0169942,973.25,Revenue,Purple Roomz,84223,,
Chorley Borough Council,http://statistics.data.gov.uk/id/local-authority/30UE,Economic Development,1096,GROW - Commercial & Property,Christmas Lights,40179,Miscellaneous Expenses,5034,"Xmas Projectors 2021 Materials associated with GOBO projector upgrades Installation, programming associated with install",12/08/2022,0169799,711.85,Revenue,R A Ryan,82222,,
Chorley Borough Council,http://statistics.data.gov.uk/id/local-authority/30UE,Regulatory Services,1048,PLAN - Planning & Development,Taxi Testing & Vehicle Safety Report,40234,Services,5027,taxi tests,05/08/2022,0169672,259.40,Revenue,R.C.J Motors,63625,,
Chorley Borough Council,http://statistics.data.gov.uk/id/local-authority/30UE,Central Support Services,1009,GROW - Commercial & Property,Professional Fees,40063,Services,5027,Employers Agent: Construction Stage ,26/08/2022,0170060,"2,385.00",Revenue,Rider Levett Bucknall,67527,,
Chorley Borough Council,http://statistics.data.gov.uk/id/local-authority/30UE,Central Support Services,1009,GROW - Commercial & Property,Professional Fees,40063,Services,5027,Project Management Consultancy support - Chorley Council - ADDRESS REDACTED Project,12/08/2022,0169955,975.00,Revenue,RigDou Ltd,85448,,
Chorley Borough Council,http://statistics.data.gov.uk/id/local-authority/30UE,Central Support Services,1009,GROW - Commercial & Property,Professional Fees,40063,Services,5027,Project Management Consultancy support - Chorley Council - Bengal St Project,12/08/2022,0169956,975.00,Revenue,RigDou Ltd,85448,,
Chorley Borough Council,http://statistics.data.gov.uk/id/local-authority/30UE,Central Support Services,1009,GROW - Commercial & Property,Professional Fees,40063,Services,5027,Marketing fees for council commercial property from May 2022 to April 2023,05/08/2022,0169604,"1,020.00",Revenue,Rightmove Group Ltd,77717,,
Chorley Borough Council,http://statistics.data.gov.uk/id/local-authority/30UE,Capital,Capital,PLAN - Planning & Development,Consultants Fees,03025,Capital Expenditure,Capital,KSI`s and Completion Testing for Compact Athletics Track,05/08/2022,0169614,"1,800.00",Capital,Robinson Low Francis LLP,77155,,
Chorley Borough Council,http://statistics.data.gov.uk/id/local-authority/30UE,Capital,Capital,PLAN - Planning & Development,Consultants Fees,03025,Capital Expenditure,Capital,Westway Playing Fields - Stage 6 (EOD),05/08/2022,0169615,"1,265.97",Capital,Robinson Low Francis LLP,77155,,
Chorley Borough Council,http://statistics.data.gov.uk/id/local-authority/30UE,Tourism,1039,GOVN - Policy & Governance,Furniture - Hire,40013,"Equipment, Furniture & Materia",5023,Staging equipment and install/remove,26/08/2022,0170142,"8,364.00",Revenue,RPM Events,70613,,
Chorley Borough Council,http://statistics.data.gov.uk/id/local-authority/30UE,Business Support,1095,GROW - Commercial & Property,External Contractor,40198,Miscellaneous Expenses,5034,For Security services provided at Primrose Gardens,19/08/2022,0170030,"7,489.61",Revenue,Sector Security Services,19269,,
Chorley Borough Council,http://statistics.data.gov.uk/id/local-authority/30UE,Homelessness,1075,GROW - Commercial & Property,External Contractor,40198,Miscellaneous Expenses,5034,For Security services provided at Cotswold House,19/08/2022,0170031,"7,591.77",Revenue,Sector Security Services,19269,,
Chorley Borough Council,http://statistics.data.gov.uk/id/local-authority/30UE,Culture & Heritage,1036,GOVN - Policy & Governance,Burglar Alarms & Security Systems,20075,Fixtures and Fittings,5010,6 x alarm response to Astley Hall in July.,19/08/2022,0169838,311.50,Revenue,Securitas Security Services (UK) Ltd,70693,,
Chorley Borough Council,http://statistics.data.gov.uk/id/local-authority/30UE,Service Management & Support,1009,CUST - Customer & Digital,Supplies-Grounds Maintenance,40025,"Equipment, Furniture & Materia",5023,Plus inlet and outlet adapters,19/08/2022,0169943,280.83,Revenue,Seddons (Plant and Engineers) ltd,47834,,
Chorley Borough Council,http://statistics.data.gov.uk/id/local-authority/30UE,Corporate Management,1008,EARL - Communities,External Contractor,40198,Miscellaneous Expenses,5034,Supporting vulnerable resident at Primrose Gardens for carpet contribution.,05/08/2022,0169669,500.00,Revenue,Simply Floors Chorley Ltd,85505,,
Chorley Borough Council,http://statistics.data.gov.uk/id/local-authority/30UE,Capital,Capital,GROW - Commercial & Property,Main Contractor,03007,Capital Expenditure,Capital,Clayton Green Sports Centre. Replacement of defective window units in the squash court as per quote to NAME REDACTED,26/08/2022,0169517,"3,424.76",Capital,Singleton and Smart,85371,,
Chorley Borough Council,http://statistics.data.gov.uk/id/local-authority/30UE,Corporate Management,1008,GOVN - Policy & Governance,General Subscriptions,40146,Grants and Subscriptions,5031,One Year subscription - NAME REDACTED,12/08/2022,0169725,250.00,Revenue,Soc of Local Chief Execs & Snr Mngs (Solace Group),82059,,
Chorley Borough Council,http://statistics.data.gov.uk/id/local-authority/30UE,Unapportionable Central OHeads,1009,GOVN - Policy & Governance,Lone Working System,40097,Communication and Computing,5028,Service Charge for June 2022,12/08/2022,0169220,500.80,Revenue,SoloProtect Ltd,76206,,
Chorley Borough Council,http://statistics.data.gov.uk/id/local-authority/30UE,Service Management & Support,1009,CUST - Customer & Digital,Vehicles and Plant Maintenance,30045,Direct Transport Costs,5016,Repairs to ride on mower,12/08/2022,0169828,"1,399.76",Revenue,South Ribble Borough Council,17889,,
Chorley Borough Council,http://statistics.data.gov.uk/id/local-authority/30UE,Tourism,1039,GOVN - Policy & Governance,Miscellaneous Contributions,60031,"Other Grants, Reimbursements a",5063,music in the park owed to SRBC,26/08/2022,0170201,560.00,Revenue,South Ribble Borough Council,17889,,
Chorley Borough Council,http://statistics.data.gov.uk/id/local-authority/30UE,Corporate Management,1008,EARL - Communities,Other Contributions,40145,Grants and Subscriptions,5031,Delivery of Household Support Fund - Phase 2,12/08/2022,0169975,"2,700.00",Revenue,St Laurence`s PCC,17814,,
Chorley Borough Council,http://statistics.data.gov.uk/id/local-authority/30UE,Service Management & Support,1009,CUST - Customer & Digital,Diesel/Derv,30007,Direct Transport Costs,5016,As procured via the chest 6500 litres of Road diesel 3000 litres of gas oil,12/08/2022,0169048,"10,252.45",Revenue,Standard Fuel Oils,85167,,
Chorley Borough Council,http://statistics.data.gov.uk/id/local-authority/30UE,Service Management & Support,1009,CUST - Customer & Digital,Diesel/Derv,30007,Direct Transport Costs,5016,As procured via the chest 6500 litres of Road diesel 3000 litres of gas oil,12/08/2022,0169570,"3,487.80",Revenue,Standard Fuel Oils,85167,,
Chorley Borough Council,http://statistics.data.gov.uk/id/local-authority/30UE,Capital,Capital,EARL - Communities,Grants,03002,Capital Expenditure,Capital,ADDRESS REDACTED,05/08/2022,0169598,"6,890.00",Capital,Stannah Lift Services Ltd,80943,,
Chorley Borough Council,http://statistics.data.gov.uk/id/local-authority/30UE,Capital,Capital,PLAN - Planning & Development,Main Contractor,03007,Capital Expenditure,Capital,Consultancy fees for RIBA stage 4 - 6. Wigan Lane archery facility contract construction phase.,05/08/2022,0169571,"11,790.00",Capital,Steve Wells Associates Ltd,77157,,
Chorley Borough Council,http://statistics.data.gov.uk/id/local-authority/30UE,Capital,Capital,PLAN - Planning & Development,Main Contractor,03007,Capital Expenditure,Capital,Wigan Lane Playing Pitch Improvements. Consultants fees and Professional Services,05/08/2022,0169637,"3,300.00",Capital,Steve Wells Associates Ltd,77157,,
Chorley Borough Council,http://statistics.data.gov.uk/id/local-authority/30UE,Central Support Services,1009,GROW - Commercial & Property,Professional Fees,40063,Services,5027,Building Consultancy � M&E Design & Consultancy,05/08/2022,0168826,404.91,Revenue,Steven A Hunt & Associates Ltd,80511,,
Chorley Borough Council,http://statistics.data.gov.uk/id/local-authority/30UE,Parking Services,1066,GROW - Commercial & Property,Consultants` Fees,40077,Services,5027,extended services for period 01.07.22 - 30.09.22,05/08/2022,0169730,"3,979.53",Revenue,Street Civil Engineering Limited,76750,,
Chorley Borough Council,http://statistics.data.gov.uk/id/local-authority/30UE,Community Development,1097,EARL - Communities,Core Funding Grants,40133,Grants and Subscriptions,5031,Delivery of Community Safety Services June 2022 to May 2023 - first payment,12/08/2022,0169797,"4,000.00",Revenue,Street Pastors,21946,,
Chorley Borough Council,http://statistics.data.gov.uk/id/local-authority/30UE,Capital,Capital,EARL - Communities,Grants,03002,Capital Expenditure,Capital,21/00002/DFG NAME REDACTED,05/08/2022,0169647,"3,960.00",Capital,Stringfellow Bldg Cntrctrs Ltd,17893,,
Chorley Borough Council,http://statistics.data.gov.uk/id/local-authority/30UE,Capital,Capital,EARL - Communities,Grants,03002,Capital Expenditure,Capital,21/00180/CAG NAME REDACTED,05/08/2022,0169648,"4,054.00",Capital,Stringfellow Bldg Cntrctrs Ltd,17893,,
Chorley Borough Council,http://statistics.data.gov.uk/id/local-authority/30UE,Capital,Capital,EARL - Communities,Grants,03002,Capital Expenditure,Capital,21/00175/CAG NAMES REDACTED,05/08/2022,0169649,"3,510.00",Capital,Stringfellow Bldg Cntrctrs Ltd,17893,,
Chorley Borough Council,http://statistics.data.gov.uk/id/local-authority/30UE,Central Support Services,1009,EARL - Communities,Misc Expenses,40200,Miscellaneous Expenses,5034,Hire of community skip on Sat 9th July at Croston Train Station car park,26/08/2022,0170151,422.99,Revenue,SUEZ R&R UK LTD,17615,,
Chorley Borough Council,http://statistics.data.gov.uk/id/local-authority/30UE,Central Support Services,1009,EARL - Communities,Misc Expenses,40200,Miscellaneous Expenses,5034,Hire of community skip on Sat 16th July at Charnock Richard FC car park,26/08/2022,0170152,321.98,Revenue,SUEZ R&R UK LTD,17615,,
Chorley Borough Council,http://statistics.data.gov.uk/id/local-authority/30UE,Democratic Represent and  Mgnt,1007,PLAN - Planning & Development,Grounds Maintenance Contractor,20043,Grounds Maintenance Costs,5013,Skip delivery for Crosse Hall Allotments on Tuesday 15th March.,26/08/2022,0170203,273.59,Revenue,SUEZ R&R UK LTD,17615,,
Chorley Borough Council,http://statistics.data.gov.uk/id/local-authority/30UE,Corporate Management,1008,EARL - Communities,Other Contributions,40145,Grants and Subscriptions,5031,Delivery of Household Support Fund - phase 2,05/08/2022,0169251,"10,300.00",Revenue,SVP Chorley Buddies,82307,,
Chorley Borough Council,http://statistics.data.gov.uk/id/local-authority/30UE,Central Support Services,1009,CUST - Customer & Digital,CCTV Camera Maintenance,40007,"Equipment, Furniture & Materia",5023,po to cover cctv faults 1 april 2022,05/08/2022,0169612,"2,827.50",Revenue,Technology Solutions,72376,,
Chorley Borough Council,http://statistics.data.gov.uk/id/local-authority/30UE,Capital,Capital,EARL - Communities,Grants,03002,Capital Expenditure,Capital,22/00078/CAG,19/08/2022,0170081,"1,800.00",Capital,The Excellent Ramp System Ltd,84866,,
Chorley Borough Council,http://statistics.data.gov.uk/id/local-authority/30UE,Business Support,1095,GROW - Commercial & Property,Security Service,40062,Services,5027,Security service at Strawberry Fields Digital Hub between April 2022 to end of September 2022,12/08/2022,0169953,"7,614.55",Revenue,The ExcluSec Group Ltd,78056,,
Chorley Borough Council,http://statistics.data.gov.uk/id/local-authority/30UE,Business Support,1095,GROW - Commercial & Property,Security Service,40062,Services,5027,Eviction of travellers from Strawberry Fields car park 5th/6th August 2022,19/08/2022,0170008,"2,000.00",Revenue,The ExcluSec Group Ltd,78056,,
Chorley Borough Council,http://statistics.data.gov.uk/id/local-authority/30UE,Tourism,1039,GOVN - Policy & Governance,Misc Expenses,40200,Miscellaneous Expenses,5034,Chorley Flower Show - One pair of hedges. 3 days. 4 x 30 minute walkabout sets per day.,19/08/2022,0167245,"2,090.00",Revenue,The Human Hedges and Theatre Illumiere,84869,,
Chorley Borough Council,http://statistics.data.gov.uk/id/local-authority/30UE,Central Support Services,1009,EARL - Communities,Misc Expenses,40200,Miscellaneous Expenses,5034,Clear site of Trees and Shrubs and supply and install approximately 70 metres of  1.5 metre high wooden fencing,05/08/2022,0169182,"6,750.00",Revenue,Thistlethwaite Fencing Contractors Ltd,78179,,
Chorley Borough Council,http://statistics.data.gov.uk/id/local-authority/30UE,Elections,1012,GOVN - Policy & Governance,Publications,40054,"Printing, Stationery & General",5026,Schofields Election law issue 65,19/08/2022,0170036,314.00,Revenue,Thomson Reuters RE;Sweet & Maxwell Limited,17932,,
Chorley Borough Council,http://statistics.data.gov.uk/id/local-authority/30UE,Business Support,1095,GROW - Commercial & Property,Christmas Tree / Decorations,40178,Miscellaneous Expenses,5034,"Christmas tree, lights & fitting service X4 ",05/08/2022,0169636,280.00,Revenue,Town Centre Trees,57436,,
Chorley Borough Council,http://statistics.data.gov.uk/id/local-authority/30UE,Business Support,1095,GROW - Commercial & Property,Christmas Tree / Decorations,40178,Miscellaneous Expenses,5034,"Christmas Trees, lights and fitting service x4 - To fitting lights to additional xmas lights X3  ",19/08/2022,0169729,460.00,Revenue,Town Centre Trees,57436,,
Chorley Borough Council,http://statistics.data.gov.uk/id/local-authority/30UE,Corporate Management,1008,GROW - Commercial & Property,Professional Fees,14011,Direct Employee Expenses,5001,Levelling Up Fund - Chorley Council,26/08/2022,0170161,"19,750.00",Revenue,Trebbi Continuum,77723,,
Chorley Borough Council,http://statistics.data.gov.uk/id/local-authority/30UE,Corporate Management,1008,GROW - Commercial & Property,Professional Fees,14011,Direct Employee Expenses,5001,Levelling Up Fund - Chorley Council,26/08/2022,0170177,"10,000.00",Revenue,Trebbi Continuum,77723,,
Chorley Borough Council,http://statistics.data.gov.uk/id/local-authority/30UE,Service Management & Support,1009,CUST - Customer & Digital,Grounds Maintenance Contractor,20043,Grounds Maintenance Costs,5013,Prune Maple and other trees back to boundary - ADDRESS REDACTED,19/08/2022,0170009,840.00,Revenue,Treescape North West Ltd,17688,,
Chorley Borough Council,http://statistics.data.gov.uk/id/local-authority/30UE,Service Management & Support,1009,CUST - Customer & Digital,Grounds Maintenance Contractor,20043,Grounds Maintenance Costs,5013,"Remove dead Elm, Bolton Rd",19/08/2022,0170010,840.00,Revenue,Treescape North West Ltd,17688,,
Chorley Borough Council,http://statistics.data.gov.uk/id/local-authority/30UE,Central Support Services,1009,EARL - Communities,Grants To Other Organisations,40127,Grants and Subscriptions,5031,Payment 1 of 2 for Digital Inclusion Scheme as per payment schedule in grant agreement.To deliver digital skills opportunities,26/08/2022,0169946,"11,250.00",Revenue,UDevelop CIC,84423,,
Chorley Borough Council,http://statistics.data.gov.uk/id/local-authority/30UE,Unapportionable Central OHeads,1009,GOVN - Policy & Governance,Misc Expenses,40200,Miscellaneous Expenses,5034,01 JULY 2022,12/08/2022,0169000,"1,347.80",Revenue,UK Healthcare (BDHSC),17241,,
Chorley Borough Council,http://statistics.data.gov.uk/id/local-authority/30UE,Tourism,1039,GOVN - Policy & Governance,Misc Expenses,40200,Miscellaneous Expenses,5034,"Chorley Flower Show 2022 Friday 29, Saturday 30 & Sunday 31 July 2022 1x Face Painter -",12/08/2022,0169987,960.00,Revenue,UK Media and Events Limited,71221,,
Chorley Borough Council,http://statistics.data.gov.uk/id/local-authority/30UE,Central Support Services,1009,CUST - Customer & Digital,Postages,40082,Communication and Computing,5028,For invoices ,05/08/2022,0169201,"10,893.70",Revenue,UKMAIL Ltd (Mail),57758,,
Chorley Borough Council,http://statistics.data.gov.uk/id/local-authority/30UE,Development Control,1091,PLAN - Planning & Development,Agency Staff,13000,Direct Employee Expenses,5001,Contract work - Consultant NAME REDACTED.  April 2022 - March 2023,12/08/2022,0168756,"1,642.50",Revenue,Vivid Resourcing Ltd,76938,,
Chorley Borough Council,http://statistics.data.gov.uk/id/local-authority/30UE,Development Control,1091,PLAN - Planning & Development,Agency Staff,13000,Direct Employee Expenses,5001,Contract work - Consultant NAME REDACTED.  April 2022 - March 2023,12/08/2022,0168931,"1,642.50",Revenue,Vivid Resourcing Ltd,76938,,
Chorley Borough Council,http://statistics.data.gov.uk/id/local-authority/30UE,Central Support Services,1009,GROW - Commercial & Property,Agency Staff,13000,Direct Employee Expenses,5001,Building surveyor fees and mileage for 6 months General Building,12/08/2022,0169322,"1,354.30",Revenue,Vivid Resourcing Ltd,76938,,
Chorley Borough Council,http://statistics.data.gov.uk/id/local-authority/30UE,Development Control,1091,PLAN - Planning & Development,Agency Staff,13000,Direct Employee Expenses,5001,Contract work - Consultant NAME REDACTED.  April 2022 - March 2023,12/08/2022,0169389,"1,642.50",Revenue,Vivid Resourcing Ltd,76938,,
Chorley Borough Council,http://statistics.data.gov.uk/id/local-authority/30UE,Development Control,1091,PLAN - Planning & Development,Agency Staff,13000,Direct Employee Expenses,5001,Contract work - Consultant NAME REDACTED.  April 2022 - March 2023,12/08/2022,0169625,"1,755.00",Revenue,Vivid Resourcing Ltd,76938,,
Chorley Borough Council,http://statistics.data.gov.uk/id/local-authority/30UE,Central Support Services,1009,CUST - Customer & Digital,Computer Equipment - Security,40106,Communication and Computing,5028,01 july 2022,05/08/2022,0169386,980.86,Revenue,Vodafone Ltd,60180,,
Chorley Borough Council,http://statistics.data.gov.uk/id/local-authority/30UE,Unapportionable Central OHeads,1009,GROW - Commercial & Property,Planned Maintenance,20006,Repairs Maintenance & Alts,5005,ADDRESS REDACTED St Electrical testing - EICR  - IPR18 376066,05/08/2022,0169180,444.00,Revenue,Walker Gabbott Electrical Ltd,83932,,
Chorley Borough Council,http://statistics.data.gov.uk/id/local-authority/30UE,Unapportionable Central OHeads,1009,GROW - Commercial & Property,Planned Maintenance,20006,Repairs Maintenance & Alts,5005,Labour,05/08/2022,0169180,"2,500.00",Revenue,Walker Gabbott Electrical Ltd,83932,,
Chorley Borough Council,http://statistics.data.gov.uk/id/local-authority/30UE,Unapportionable Central OHeads,1009,GROW - Commercial & Property,Planned Maintenance,20006,Repairs Maintenance & Alts,5005,Additional works for Dado sockets,05/08/2022,0169180,"1,588.43",Revenue,Walker Gabbott Electrical Ltd,83932,,
Chorley Borough Council,http://statistics.data.gov.uk/id/local-authority/30UE,Capital,Capital,GROW - Commercial & Property,Main Contractor,03007,Capital Expenditure,Capital,"All Seasons Leisure CentrePool Side Socket outlet replacement, provide 3 Pin plugs for existing equipment and various repairs",05/08/2022,0169383,"2,126.00",Capital,Walker Gabbott Electrical Ltd,83932,,
Chorley Borough Council,http://statistics.data.gov.uk/id/local-authority/30UE,Capital,Capital,GROW - Commercial & Property,Main Contractor,03007,Capital Expenditure,Capital,"All Seasons Leisure CentrePool Side Socket outlet replacement, provide 3 Pin plugs for existing equipment and various repairs",05/08/2022,0169428,531.50,Capital,Walker Gabbott Electrical Ltd,83932,,
Chorley Borough Council,http://statistics.data.gov.uk/id/local-authority/30UE,Business Support,1095,GROW - Commercial & Property,General Repairs - Reactive,20004,Repairs Maintenance & Alts,5005,MW    Market Walk  - Electrical Reactive Repairs,05/08/2022,0169490,"1,471.18",Revenue,Walker Gabbott Electrical Ltd,83932,,
Chorley Borough Council,http://statistics.data.gov.uk/id/local-authority/30UE,Unapportionable Central OHeads,1009,GROW - Commercial & Property,General Repairs - Reactive,20004,Repairs Maintenance & Alts,5005,Astley Hall and Buildings  - Electrical Reactive Repairs,05/08/2022,0169575,"2,703.44",Revenue,Walker Gabbott Electrical Ltd,83932,,
Chorley Borough Council,http://statistics.data.gov.uk/id/local-authority/30UE,Business Support,1095,GROW - Commercial & Property,General Repairs - Reactive,20004,Repairs Maintenance & Alts,5005,Strawberry Fields  - Electrical Reactive Repairs,05/08/2022,0169577,"1,938.12",Revenue,Walker Gabbott Electrical Ltd,83932,,
Chorley Borough Council,http://statistics.data.gov.uk/id/local-authority/30UE,Unapportionable Central OHeads,1009,GROW - Commercial & Property,General Repairs - Reactive,20004,Repairs Maintenance & Alts,5005,Astley Hall and Buildings  - Electrical Reactive Repairs,05/08/2022,0169578,354.90,Revenue,Walker Gabbott Electrical Ltd,83932,,
Chorley Borough Council,http://statistics.data.gov.uk/id/local-authority/30UE,Business Support,1095,GROW - Commercial & Property,General Repairs - Reactive,20004,Repairs Maintenance & Alts,5005,MW    Market Walk  - Electrical Reactive Repairs,05/08/2022,0169580,434.55,Revenue,Walker Gabbott Electrical Ltd,83932,,
Chorley Borough Council,http://statistics.data.gov.uk/id/local-authority/30UE,Capital,Capital,GROW - Commercial & Property,Sub Contractor,03008,Capital Expenditure,Capital,Town Hall Installation of door access Spurs for HFX system,26/08/2022,0169711,"1,295.90",Capital,Walker Gabbott Electrical Ltd,83932,,
Chorley Borough Council,http://statistics.data.gov.uk/id/local-authority/30UE,Capital,Capital,GROW - Commercial & Property,Sub Contractor,03008,Capital Expenditure,Capital,MATERIALS,26/08/2022,0169711,514.20,Capital,Walker Gabbott Electrical Ltd,83932,,
Chorley Borough Council,http://statistics.data.gov.uk/id/local-authority/30UE,Unapportionable Central OHeads,1009,GROW - Commercial & Property,General Repairs - Reactive,20004,Repairs Maintenance & Alts,5005,Primrose  - Electrical Reactive Repairs,26/08/2022,0170148,466.85,Revenue,Walker Gabbott Electrical Ltd,83932,,
Chorley Borough Council,http://statistics.data.gov.uk/id/local-authority/30UE,Unapportionable Central OHeads,1009,GROW - Commercial & Property,General Repairs - Reactive,20004,Repairs Maintenance & Alts,5005,Primrose  - Electrical Reactive Repairs,26/08/2022,0170178,353.32,Revenue,Walker Gabbott Electrical Ltd,83932,,
Chorley Borough Council,http://statistics.data.gov.uk/id/local-authority/30UE,Business Support,1095,GROW - Commercial & Property,General Repairs - Reactive,20004,Repairs Maintenance & Alts,5005,MW Ext    Market Walk Extension  -  Electrical Reactive Repairs,26/08/2022,0170180,402.38,Revenue,Walker Gabbott Electrical Ltd,83932,,
Chorley Borough Council,http://statistics.data.gov.uk/id/local-authority/30UE,Unapportionable Central OHeads,1009,GROW - Commercial & Property,General Repairs - Reactive,20004,Repairs Maintenance & Alts,5005,Cotswold  - Electrical Reactive Repairs,26/08/2022,0170182,364.50,Revenue,Walker Gabbott Electrical Ltd,83932,,
Chorley Borough Council,http://statistics.data.gov.uk/id/local-authority/30UE,Unapportionable Central OHeads,1009,GROW - Commercial & Property,General Repairs - Reactive,20004,Repairs Maintenance & Alts,5005,Housing  - Electrical Reactive Repairs,26/08/2022,0170190,984.00,Revenue,Walker Gabbott Electrical Ltd,83932,,
Chorley Borough Council,http://statistics.data.gov.uk/id/local-authority/30UE,Unapportionable Central OHeads,1009,GROW - Commercial & Property,General Repairs - Reactive,20004,Repairs Maintenance & Alts,5005,Astley Hall and Buildings  - Electrical Reactive Repairs,26/08/2022,0170192,"1,016.82",Revenue,Walker Gabbott Electrical Ltd,83932,,
Chorley Borough Council,http://statistics.data.gov.uk/id/local-authority/30UE,Cemetery Cremation & Mortuary,1041,GROW - Commercial & Property,Sewerage/Environment Svcs,20024,Water Services,5009,Cemetery House Adlington,12/08/2022,0169774,430.10,Revenue,WaterPlus Group Account,85560,,
Chorley Borough Council,http://statistics.data.gov.uk/id/local-authority/30UE,Cemetery Cremation & Mortuary,1041,GROW - Commercial & Property,Sewerage/Environment Svcs,20024,Water Services,5009,B/bfwd pro rata,12/08/2022,0169774,110.10,Revenue,WaterPlus Group Account,85560,,
Chorley Borough Council,http://statistics.data.gov.uk/id/local-authority/30UE,Democratic Represent and  Mgnt,1007,GROW - Commercial & Property,Sewerage/Environment Svcs,20024,Water Services,5009,Eaves Green Comm Hall,12/08/2022,0169774,"1,773.78",Revenue,WaterPlus Group Account,85560,,
Chorley Borough Council,http://statistics.data.gov.uk/id/local-authority/30UE,Democratic Represent and  Mgnt,1007,GROW - Commercial & Property,Sewerage/Environment Svcs,20024,Water Services,5009,B/bfwd pro rata,12/08/2022,0169774,454.07,Revenue,WaterPlus Group Account,85560,,
Chorley Borough Council,http://statistics.data.gov.uk/id/local-authority/30UE,Parking Services,1066,GROW - Commercial & Property,Sewerage/Environment Svcs,20024,Water Services,5009,"Long Stay Car Park, Fleet Street",12/08/2022,0169774,324.90,Revenue,WaterPlus Group Account,85560,,
Chorley Borough Council,http://statistics.data.gov.uk/id/local-authority/30UE,Parking Services,1066,GROW - Commercial & Property,Sewerage/Environment Svcs,20024,Water Services,5009,B/bfwd pro rata,12/08/2022,0169774,83.17,Revenue,WaterPlus Group Account,85560,,
Chorley Borough Council,http://statistics.data.gov.uk/id/local-authority/30UE,Democratic Represent and  Mgnt,1007,GROW - Commercial & Property,Sewerage/Environment Svcs,20024,Water Services,5009,Astley Park Village Centre,12/08/2022,0169774,"1,773.78",Revenue,WaterPlus Group Account,85560,,
Chorley Borough Council,http://statistics.data.gov.uk/id/local-authority/30UE,Democratic Represent and  Mgnt,1007,GROW - Commercial & Property,Sewerage/Environment Svcs,20024,Water Services,5009,B/bfwd pro rata,12/08/2022,0169774,454.07,Revenue,WaterPlus Group Account,85560,,
Chorley Borough Council,http://statistics.data.gov.uk/id/local-authority/30UE,Democratic Represent and  Mgnt,1007,GROW - Commercial & Property,Sewerage/Environment Svcs,20024,Water Services,5009,Car Park Hallgate,12/08/2022,0169774,441.96,Revenue,WaterPlus Group Account,85560,,
Chorley Borough Council,http://statistics.data.gov.uk/id/local-authority/30UE,Democratic Represent and  Mgnt,1007,GROW - Commercial & Property,Sewerage/Environment Svcs,20024,Water Services,5009,B/bfwd pro rata,12/08/2022,0169774,113.14,Revenue,WaterPlus Group Account,85560,,
Chorley Borough Council,http://statistics.data.gov.uk/id/local-authority/30UE,Central Support Services,1009,GROW - Commercial & Property,Sewerage/Environment Svcs,20024,Water Services,5009,63/65/ UnionStreet Chorley,12/08/2022,0169774,"1,773.78",Revenue,WaterPlus Group Account,85560,,
Chorley Borough Council,http://statistics.data.gov.uk/id/local-authority/30UE,Central Support Services,1009,GROW - Commercial & Property,Sewerage/Environment Svcs,20024,Water Services,5009,B/bfwd pro rata,12/08/2022,0169774,454.07,Revenue,WaterPlus Group Account,85560,,
Chorley Borough Council,http://statistics.data.gov.uk/id/local-authority/30UE,Economic Development,1096,GROW - Commercial & Property,Sewerage/Environment Svcs,20024,Water Services,5009,Market Ground,12/08/2022,0169774,907.82,Revenue,WaterPlus Group Account,85560,,
Chorley Borough Council,http://statistics.data.gov.uk/id/local-authority/30UE,Economic Development,1096,GROW - Commercial & Property,Sewerage/Environment Svcs,20024,Water Services,5009,B/bfwd pro rata,12/08/2022,0169774,232.39,Revenue,WaterPlus Group Account,85560,,
Chorley Borough Council,http://statistics.data.gov.uk/id/local-authority/30UE,Parking Services,1066,GROW - Commercial & Property,Sewerage/Environment Svcs,20024,Water Services,5009,Car Park Union Street,12/08/2022,0169774,668.92,Revenue,WaterPlus Group Account,85560,,
Chorley Borough Council,http://statistics.data.gov.uk/id/local-authority/30UE,Parking Services,1066,GROW - Commercial & Property,Sewerage/Environment Svcs,20024,Water Services,5009,B/bfwd pro rata,12/08/2022,0169774,171.24,Revenue,WaterPlus Group Account,85560,,
Chorley Borough Council,http://statistics.data.gov.uk/id/local-authority/30UE,Parking Services,1066,GROW - Commercial & Property,Sewerage/Environment Svcs,20024,Water Services,5009,Car Park West Street,12/08/2022,0169774,"8,371.06",Revenue,WaterPlus Group Account,85560,,
Chorley Borough Council,http://statistics.data.gov.uk/id/local-authority/30UE,Parking Services,1066,GROW - Commercial & Property,Sewerage/Environment Svcs,20024,Water Services,5009,B/bfwd pro rata,12/08/2022,0169774,"2,142.92",Revenue,WaterPlus Group Account,85560,,
Chorley Borough Council,http://statistics.data.gov.uk/id/local-authority/30UE,Open Spaces,1038,GROW - Commercial & Property,Water - Metered Supplies,20022,Water Services,5009,11/04/2022 - 30/07/2022,12/08/2022,0169962,33.61,Revenue,WaterPlus ,85437,,
Chorley Borough Council,http://statistics.data.gov.uk/id/local-authority/30UE,Open Spaces,1038,GROW - Commercial & Property,Water - Metered Supplies,20022,Water Services,5009,DCA Fee,12/08/2022,0169962,170.00,Revenue,WaterPlus ,85437,,
Chorley Borough Council,http://statistics.data.gov.uk/id/local-authority/30UE,Open Spaces,1038,GROW - Commercial & Property,Water - Metered Supplies,20022,Water Services,5009,Late Payment Fee,12/08/2022,0169962,70.00,Revenue,WaterPlus ,85437,,
Chorley Borough Council,http://statistics.data.gov.uk/id/local-authority/30UE,Regulatory Services,1048,GROW - Commercial & Property,Water - Metered Supplies,20022,Water Services,5009,"Toilets, Market Place PR7 1DA",12/08/2022,0169787,"5,821.33",Revenue,WaterPlus ,85561,,
Chorley Borough Council,http://statistics.data.gov.uk/id/local-authority/30UE,Unapportionable Central OHeads,1009,GROW - Commercial & Property,Water - Metered Supplies,20022,Water Services,5009,11/06/2022 - 10/07/2022,26/08/2022,0169963,540.19,Revenue,WaterPlus ,85458,,
Chorley Borough Council,http://statistics.data.gov.uk/id/local-authority/30UE,Unapportionable Central OHeads,1009,GROW - Commercial & Property,Water - Metered Supplies,20022,Water Services,5009,11/7 to 10/8/22,26/08/2022,0170197,567.78,Revenue,WaterPlus ,85458,,
Chorley Borough Council,http://statistics.data.gov.uk/id/local-authority/30UE,Unapportionable Central OHeads,1009,GROW - Commercial & Property,Water - Metered Supplies,20022,Water Services,5009,13/7 to 12/8/22,26/08/2022,0170196,357.15,Revenue,WaterPlus ,84240,,
Chorley Borough Council,http://statistics.data.gov.uk/id/local-authority/30UE,Democratic Represent and  Mgnt,1007,GROW - Commercial & Property,Water - Metered Supplies,20022,Water Services,5009,12/7 to 11/8/22,26/08/2022,0170199,458.46,Revenue,WaterPlus ,85508,,
Chorley Borough Council,http://statistics.data.gov.uk/id/local-authority/30UE,Homelessness,1075,GROW - Commercial & Property,Water - Metered Supplies,20022,Water Services,5009,28/02/2022 - 27/05/2022,12/08/2022,0169847,"7,177.94",Revenue,WaterPlus ,85562,,
Chorley Borough Council,http://statistics.data.gov.uk/id/local-authority/30UE,Community Development,1097,GROW - Commercial & Property,Water - Metered Supplies,20022,Water Services,5009,05/07/2022 - 04/08/2022,12/08/2022,0169913,"1,520.08",Revenue,WaterPlus ,85568,,
Chorley Borough Council,http://statistics.data.gov.uk/id/local-authority/30UE,Cemetery Cremation & Mortuary,1041,GROW - Commercial & Property,Water - Metered Supplies,20022,Water Services,5009,05/07/2022 - 04/08/2022,12/08/2022,0169950,"2,383.65",Revenue,WaterPlus ,85569,,
Chorley Borough Council,http://statistics.data.gov.uk/id/local-authority/30UE,Recreation & Sport,1037,GROW - Commercial & Property,Water - Metered Supplies,20022,Water Services,5009,12/06/2022 - 11/07/2022,12/08/2022,0169770,368.86,Revenue,WaterPlus ,84642,,
Chorley Borough Council,http://statistics.data.gov.uk/id/local-authority/30UE,Recreation & Sport,1037,GROW - Commercial & Property,Water - Metered Supplies,20022,Water Services,5009,12/07/2022 - 11/08/2022,19/08/2022,0170111,339.75,Revenue,WaterPlus ,84642,,
Chorley Borough Council,http://statistics.data.gov.uk/id/local-authority/30UE,Recreation & Sport,1037,GROW - Commercial & Property,Water - Metered Supplies,20022,Water Services,5009,12/07/2022 - 11/08/2022,19/08/2022,0170111,35.67,Revenue,WaterPlus ,84642,,
Chorley Borough Council,http://statistics.data.gov.uk/id/local-authority/30UE,Recreation & Sport,1037,GROW - Commercial & Property,Water - Metered Supplies,20022,Water Services,5009,Fees,19/08/2022,0170111,40.00,Revenue,WaterPlus ,84642,,
Chorley Borough Council,http://statistics.data.gov.uk/id/local-authority/30UE,Economic Development,1096,GROW - Commercial & Property,Fixtures & Fittings - Repair/Mtnce,20028,Fixtures and Fittings,5010,As per quote: 65811 WEC Winch Training at Chorley (up to 6 people),05/08/2022,0167720,519.00,Revenue,WEC Group Ltd,84488,,
Chorley Borough Council,http://statistics.data.gov.uk/id/local-authority/30UE,Unapportionable Central OHeads,1009,GOVN - Policy & Governance,IT Software - Annual Licences,40101,Communication and Computing,5028,extension to greater.jobs package to include 80 job pack ,12/08/2022,0169763,"11,200.00",Revenue,Wigan Borough Council,84081,,
Chorley Borough Council,http://statistics.data.gov.uk/id/local-authority/30UE,Corporate Management,1008,CUST - Customer & Digital,Misc Expenses,40200,Miscellaneous Expenses,5034,Dual recycling bin (2-colour black and blue) With pitched lid and Chorley Council logo ,19/08/2022,0168661,"8,649.80",Revenue,Wybone Ltd,18097,,
Chorley Borough Council,http://statistics.data.gov.uk/id/local-authority/30UE,Street Cleansing,1049,CUST - Customer & Digital,Provn Of Street Furniture,20057,Grounds Maintenance Costs,5013,As per sales quotation 9000002362 Quantity x16   120Litre Quantity x 4     240ltr,19/08/2022,0169977,"5,256.32",Revenue,Wybone Ltd,18097,,
Chorley Borough Council,http://statistics.data.gov.uk/id/local-authority/30UE,Central Support Services,1009,CUST - Customer & Digital,IT Software - Annual Licences,40101,Communication and Computing,5028,Alloy SaaS Hosted Solution Year 2 of 5 1 April 2022- 31 March 2023,12/08/2022,0169841,"9,800.00",Revenue,Yotta Ltd,77916,,
